Workbook

Sheet Intro
B2: Buttons for running a tournament: | R2: Setup Tabs
R3: Presentation Tabs
R4: Round Results
R5: Other
B19: Buttons for practising:

Sheet Setup
A1: SCORING SETUP | D1: Group/Ind Swiss? | E1: Individual | G1: Individual Tie Breaks | J1: Group Tie Breaks
G2: Player | J2: Group
A3: Points for… | D3: Name of First Bonus | E3: Bonus1 | G3: Points | H3: Order | J3: Points | K3: Order
A4: Win by at least 2 TD | B4: 2 | D4: Name of Second Bonus | E4: Bonus2 | G4: TD For | J4: TD For
A5: Win by 1 TD | B5: 2 | G5: TD Against | J5: TD Against
A6: Draw | B6: 1 | G6: TD Net | H6: 2 | J6: Net TDs | K6: 2
A7: Lose by 1 TD | B7: 0 | G7: Cas For | J7: Cas For
A8: Lose by at least 2 TD | B8: 0 | G8: Cas Against | J8: Cas Against
G9: Cas Net | H9: 3 | J9: Net Cas | K9: 3
A10: Bonus points for TD/Cas etc | D10: Test Individual Scoring System Here | G10: =Working!AG16 -> Bonus1 | J10: ="Group Total "&Working!AG16 -> Group Total Bonus1
A11: Points per TD | B11: 0 | D11: Your Score (required) | E11: 4 | G11: =Working!AG17 -> Bonus2 | J11: ="Group Total "&Working!AG17 -> Group Total Bonus2
A12: Max TD Bonus Pts | B12: 0 | D12: Opponent Score (required) | E12: 3 | G12: Wins | J12: Group Wins
A13: Points per Cas | B13: 0 | D13: Your Cas (optional) | E13: 3 | G13: Draws | J13: Groups Draws
A14: Max Cas Bonus Pts | B14: 0 | D14: ="Your "&Working!AG16&" (optional)" -> Your Bonus1 (optional) | E14: 1 | G14: Losses | J14: Group Losses
A15: =Working!AG16&" Max Bonus Pts" -> Bonus1 Max Bonus Pts | B15: 0 | D15: ="Your "&Working!AG17&" (optional)" -> Your Bonus2 (optional) | E15: 2 | G15: Opp Score | H15: 1 | J15: Individual Wins
A16: =Working!AG17&" Max Bonus Pts" -> Bonus2 Max Bonus Pts | B16: 0 | J16: Individual Draws
D17: Your Points | E17: =fctScore(E11,E12,E13,E14,E15) -> 2 | J17: Individual Losses
A18: Group Scoring Options | J18: Total Individual Points
A19: Points for a win | B19: 2 | J19: Opponent Score | K19: 1
A20: Points for a draw | B20: 1
A21: Points for a loss | B21: 0
A22: Points for a group win | B22: 200
A23: Points for a group draw | B23: 100
A24: Points for a group loss | B24: 0

Sheet Players
A1: Num | B1: Display Name | C1: NAF Name | D1: NAF Number | E1: Race | F1: Group | G1: Stunty | H1: Adjustment | M1: Groups | O1: Team Size | P1: 4
A2: =IF(C2="","",MAX(A$1:A1)+1) -> 1 | B2: a | C2: a | D2: 9391 | E2: Chaos Pact | H2: 1 | M2: A
A3: =IF(C3="","",MAX(A$1:A2)+1) -> 2 | B3: b | C3: b | D3: 15198 | E3: Slann | H3: 1 | M3: B
A4: =IF(C4="","",MAX(A$1:A3)+1) -> 3 | B4: c | C4: c | D4: 10013 | E4: Elves | H4: 1 | M4: C
A5: =IF(B5="","",MAX(A$1:A4)+1) -> 4 | B5: d | C5: d | D5: 6492 | E5: Elves | H5: 1 | M5: D
A6: =IF(B6="","",MAX(A$1:A5)+1) -> 5 | B6: e | C6: e | D6: 14470 | E6: Khemri | M6: E
A7: =IF(C7="","",MAX(A$1:A6)+1) -> 6 | B7: f | C7: f | D7: 5359 | E7: Nurgle's Rotters | M7: F
A8: =IF(C8="","",MAX(A$1:A7)+1) -> 7 | B8: g | C8: g | D8: 1190 | E8: Dark Elves | H8: -100 | M8: G
A9: =IF(C9="","",MAX(A$1:A8)+1) -> 8 | B9: h | C9: h | D9: 5243 | E9: Dwarves | M9: H
A10: =IF(C10="","",MAX(A$1:A9)+1) -> 9 | B10: i | C10: i | D10: 14238 | E10: Bretonnian
A11: =IF(B11="","",MAX(A$1:A10)+1) -> 10 | B11: j | C11: j | D11: 10208 | E11: Halflings | H11: -100
A12: =IF(B12="","",MAX(A$1:A11)+1) -> 11 | B12: k | C12: k | D12: 12367 | E12: Chaos Pact
A13: =IF(B13="","",MAX(A$1:A12)+1) -> 12 | B13: l | C13: l | D13: 2747 | E13: Ogres
A14: =IF(B14="","",MAX(A$1:A13)+1) -> 13 | B14: m | C14: m | D14: 18070 | E14: Khorne
A15: =IF(C15="","",MAX(A$1:A14)+1) -> 14 | B15: n | C15: n | D15: 16303 | E15: Underworld
A16: =IF(B16="","",MAX(A$1:A15)+1) -> 
A17: =IF(B17="","",MAX(A$1:A16)+1) -> 
A18: =IF(B18="","",MAX(A$1:A17)+1) -> 
A19: =IF(B19="","",MAX(A$1:A18)+1) -> 
A20: =IF(B20="","",MAX(A$1:A19)+1) -> 
A21: =IF(B21="","",MAX(A$1:A20)+1) -> 
A22: =IF(B22="","",MAX(A$1:A21)+1) -> 
A23: =IF(C23="","",MAX(A$1:A22)+1) -> 
A24: =IF(B24="","",MAX(A$1:A23)+1) -> 
A25: =IF(B25="","",MAX(A$1:A24)+1) -> 
A26: =IF(B26="","",MAX(A$1:A25)+1) -> 
A27: =IF(B27="","",MAX(A$1:A26)+1) -> 
A28: =IF(B28="","",MAX(A$1:A27)+1) -> 
A29: =IF(B29="","",MAX(A$1:A28)+1) -> 
A30: =IF(B30="","",MAX(A$1:A29)+1) -> 
A31: =IF(B31="","",MAX(A$1:A30)+1) -> 
A32: =IF(B32="","",MAX(A$1:A31)+1) -> 
A33: =IF(C33="","",MAX(A$1:A32)+1) -> 
A34: =IF(B34="","",MAX(A$1:A33)+1) -> 
A35: =IF(B35="","",MAX(A$1:A34)+1) -> 
A36: =IF(B36="","",MAX(A$1:A35)+1) -> 
A37: =IF(B37="","",MAX(A$1:A36)+1) -> 
A38: =IF(B38="","",MAX(A$1:A37)+1) -> 
A39: =IF(B39="","",MAX(A$1:A38)+1) -> 
A40: =IF(B40="","",MAX(A$1:A39)+1) -> 
A41: =IF(B41="","",MAX(A$1:A40)+1) -> 
A42: =IF(B42="","",MAX(A$1:A41)+1) -> 
A43: =IF(B43="","",MAX(A$1:A42)+1) -> 
A44: =IF(B44="","",MAX(A$1:A43)+1) -> 
A45: =IF(C45="","",MAX(A$1:A44)+1) -> 
A46: =IF(C46="","",MAX(A$1:A45)+1) -> 
A47: =IF(B47="","",MAX(A$1:A46)+1) -> 
A48: =IF(B48="","",MAX(A$1:A47)+1) -> 
A49: =IF(B49="","",MAX(A$1:A48)+1) -> 
A50: =IF(B50="","",MAX(A$1:A49)+1) -> 
A51: =IF(B51="","",MAX(A$1:A50)+1) -> 
A52: =IF(C52="","",MAX(A$1:A51)+1) -> 
A53: =IF(B53="","",MAX(A$1:A52)+1) -> 
A54: =IF(B54="","",MAX(A$1:A53)+1) -> 
A55: =IF(B55="","",MAX(A$1:A54)+1) -> 
A56: =IF(B56="","",MAX(A$1:A55)+1) -> 
A57: =IF(B57="","",MAX(A$1:A56)+1) -> 
A58: =IF(B58="","",MAX(A$1:A57)+1) -> 
A59: =IF(B59="","",MAX(A$1:A58)+1) -> 
A60: =IF(B60="","",MAX(A$1:A59)+1) -> 
A61: =IF(B61="","",MAX(A$1:A60)+1) -> 
A62: =IF(B62="","",MAX(A$1:A61)+1) -> 
A63: =IF(B63="","",MAX(A$1:A62)+1) -> 
A64: =IF(B64="","",MAX(A$1:A63)+1) -> 
A65: =IF(C65="","",MAX(A$1:A64)+1) -> 
A66: =IF(B66="","",MAX(A$1:A65)+1) -> 
A67: =IF(B67="","",MAX(A$1:A66)+1) -> 
A68: =IF(B68="","",MAX(A$1:A67)+1) -> 
A69: =IF(B69="","",MAX(A$1:A68)+1) -> 
A70: =IF(C70="","",MAX(A$1:A69)+1) -> 
A71: =IF(B71="","",MAX(A$1:A70)+1) -> 
A72: =IF(B72="","",MAX(A$1:A71)+1) -> 
A73: =IF(B73="","",MAX(A$1:A72)+1) -> 
A74: =IF(B74="","",MAX(A$1:A73)+1) -> 
A75: =IF(B75="","",MAX(A$1:A74)+1) -> 
A76: =IF(B76="","",MAX(A$1:A75)+1) -> 
A77: =IF(B77="","",MAX(A$1:A76)+1) -> 
A78: =IF(B78="","",MAX(A$1:A77)+1) -> 
A79: =IF(B79="","",MAX(A$1:A78)+1) -> 
A80: =IF(B80="","",MAX(A$1:A79)+1) -> 
A81: =IF(B81="","",MAX(A$1:A80)+1) -> 
A82: =IF(C82="","",MAX(A$1:A81)+1) -> 
A83: =IF(B83="","",MAX(A$1:A82)+1) -> 
A84: =IF(B84="","",MAX(A$1:A83)+1) -> 
A85: =IF(B85="","",MAX(A$1:A84)+1) -> 
A86: =IF(C86="","",MAX(A$1:A85)+1) -> 
A87: =IF(B87="","",MAX(A$1:A86)+1) -> 
A88: =IF(B88="","",MAX(A$1:A87)+1) -> 
A89: =IF(B89="","",MAX(A$1:A88)+1) -> 
A90: =IF(B90="","",MAX(A$1:A89)+1) -> 
A91: =IF(B91="","",MAX(A$1:A90)+1) -> 
A92: =IF(B92="","",MAX(A$1:A91)+1) -> 
A93: =IF(C93="","",MAX(A$1:A92)+1) -> 
A94: =IF(B94="","",MAX(A$1:A93)+1) -> 
A95: =IF(B95="","",MAX(A$1:A94)+1) -> 
A96: =IF(B96="","",MAX(A$1:A95)+1) -> 
A97: =IF(B97="","",MAX(A$1:A96)+1) -> 
A98: =IF(B98="","",MAX(A$1:A97)+1) -> 
A99: =IF(B99="","",MAX(A$1:A98)+1) -> 
A100: =IF(B100="","",MAX(A$1:A99)+1) -> 
A101: =IF(C101="","",MAX(A$1:A100)+1) -> 
A102: =IF(C102="","",MAX(A$1:A101)+1) -> 
A103: =IF(C103="","",MAX(A$1:A102)+1) -> 
A104: =IF(B104="","",MAX(A$1:A103)+1) -> 
A105: =IF(B105="","",MAX(A$1:A104)+1) -> 
A106: =IF(B106="","",MAX(A$1:A105)+1) -> 
A107: =IF(B107="","",MAX(A$1:A106)+1) -> 
A108: =IF(B108="","",MAX(A$1:A107)+1) -> 
A109: =IF(B109="","",MAX(A$1:A108)+1) -> 
A110: =IF(B110="","",MAX(A$1:A109)+1) -> 
A111: =IF(B111="","",MAX(A$1:A110)+1) -> 
A112: =IF(C112="","",MAX(A$1:A111)+1) -> 
A113: =IF(C113="","",MAX(A$1:A112)+1) -> 
A114: =IF(B114="","",MAX(A$1:A113)+1) -> 
A115: =IF(B115="","",MAX(A$1:A114)+1) -> 
A116: =IF(B116="","",MAX(A$1:A115)+1) -> 
A117: =IF(C117="","",MAX(A$1:A116)+1) -> 
A118: =IF(B118="","",MAX(A$1:A117)+1) -> 
A119: =IF(B119="","",MAX(A$1:A118)+1) -> 
A120: =IF(B120="","",MAX(A$1:A119)+1) -> 
A121: =IF(B121="","",MAX(A$1:A120)+1) -> 
A122: =IF(B122="","",MAX(A$1:A121)+1) -> 
A123: =IF(B123="","",MAX(A$1:A122)+1) -> 
A124: =IF(B124="","",MAX(A$1:A123)+1) -> 
A125: =IF(B125="","",MAX(A$1:A124)+1) -> 
A126: =IF(B126="","",MAX(A$1:A125)+1) -> 
A127: =IF(B127="","",MAX(A$1:A126)+1) -> 
A128: =IF(B128="","",MAX(A$1:A127)+1) -> 
A129: =IF(B129="","",MAX(A$1:A128)+1) -> 
A130: =IF(B130="","",MAX(A$1:A129)+1) -> 
A131: =IF(B131="","",MAX(A$1:A130)+1) -> 
A132: =IF(B132="","",MAX(A$1:A131)+1) -> 
A133: =IF(B133="","",MAX(A$1:A132)+1) -> 
A134: =IF(B134="","",MAX(A$1:A133)+1) -> 
A135: =IF(B135="","",MAX(A$1:A134)+1) -> 
A136: =IF(B136="","",MAX(A$1:A135)+1) -> 
A137: =IF(B137="","",MAX(A$1:A136)+1) -> 
A138: =IF(B138="","",MAX(A$1:A137)+1) -> 
A139: =IF(B139="","",MAX(A$1:A138)+1) -> 
A140: =IF(B140="","",MAX(A$1:A139)+1) -> 
A141: =IF(B141="","",MAX(A$1:A140)+1) -> 
A142: =IF(B142="","",MAX(A$1:A141)+1) -> 
A143: =IF(B143="","",MAX(A$1:A142)+1) -> 
A144: =IF(B144="","",MAX(A$1:A143)+1) -> 
A145: =IF(B145="","",MAX(A$1:A144)+1) -> 
A146: =IF(B146="","",MAX(A$1:A145)+1) -> 
A147: =IF(B147="","",MAX(A$1:A146)+1) -> 
A148: =IF(B148="","",MAX(A$1:A147)+1) -> 
A149: =IF(B149="","",MAX(A$1:A148)+1) -> 
A150: =IF(B150="","",MAX(A$1:A149)+1) -> 
A151: =IF(B151="","",MAX(A$1:A150)+1) -> 
A152: =IF(B152="","",MAX(A$1:A151)+1) -> 
A153: =IF(B153="","",MAX(A$1:A152)+1) -> 
A154: =IF(B154="","",MAX(A$1:A153)+1) -> 
A155: =IF(B155="","",MAX(A$1:A154)+1) -> 
A156: =IF(B156="","",MAX(A$1:A155)+1) -> 
A157: =IF(B157="","",MAX(A$1:A156)+1) -> 
A158: =IF(B158="","",MAX(A$1:A157)+1) -> 
A159: =IF(B159="","",MAX(A$1:A158)+1) -> 
A160: =IF(B160="","",MAX(A$1:A159)+1) -> 

Sheet Table
A1: Player | B1: Points | C1: TD For | D1: TD Against | E1: TD Net | F1: Cas For | G1: Cas Against | H1: Cas Net | I1: Bonus1 | J1: Bonus2 | K1: Wins | L1: Draws | M1: Losses | N1: Opp Score | P1: Group
A2: d | B2: 2 | C2: 2 | D2: 2 | E2: 0 | F2: 2 | G2: 1 | H2: 1 | I2: 1 | J2: 0 | L2: 1 | N2: 2
A3: c | B3: 2 | C3: 2 | D3: 2 | E3: 0 | F3: 1 | G3: 0 | H3: 1 | I3: 2 | J3: 3 | L3: 1 | N3: 2
A4: b | B4: 2 | C4: 2 | D4: 2 | E4: 0 | F4: 1 | G4: 2 | H4: -1 | I4: 2 | J4: 2 | L4: 1 | N4: 2
A5: a | B5: 2 | C5: 2 | D5: 2 | E5: 0 | F5: 0 | G5: 1 | H5: -1 | I5: 3 | J5: 1 | L5: 1 | N5: 2
A6: n | B6: 2 | C6: 3 | D6: 0 | E6: 3 | F6: 3 | G6: 1 | H6: 2 | I6: 2 | J6: 0 | K6: 1 | N6: 0
A7: h | B7: 2 | C7: 3 | D7: 0 | E7: 3 | F7: 0 | G7: 2 | H7: -2 | I7: 0 | J7: 2 | K7: 1 | N7: 0
A8: k | B8: 2 | C8: 3 | D8: 2 | E8: 1 | F8: 1 | G8: 3 | H8: -2 | I8: 3 | J8: 2 | K8: 1 | N8: 0
A9: e | B9: 1 | C9: 1 | D9: 1 | E9: 0 | F9: 2 | G9: 2 | H9: 0 | I9: 1 | J9: 2 | L9: 1 | N9: 1
A10: i | B10: 1 | C10: 1 | D10: 1 | E10: 0 | F10: 2 | G10: 2 | H10: 0 | I10: 1 | J10: 2 | L10: 1 | N10: 1
A11: l | B11: 0 | C11: 2 | D11: 3 | E11: -1 | F11: 3 | G11: 1 | H11: 2 | I11: 2 | J11: 1 | M11: 1 | N11: 2
A12: f | B12: 0 | C12: 0 | D12: 3 | E12: -3 | F12: 2 | G12: 0 | H12: 2 | I12: 2 | J12: 0 | M12: 1 | N12: 2
A13: m | B13: 0 | C13: 0 | D13: 3 | E13: -3 | F13: 1 | G13: 3 | H13: -2 | I13: 2 | J13: 2 | M13: 1 | N13: 2
A14: j | B14: -98 | C14: 1 | D14: 0 | E14: 1 | F14: 1 | G14: 1 | H14: 0 | I14: 1 | J14: 3 | K14: 1 | N14: -100
A15: g | B15: -100 | C15: 0 | D15: 1 | E15: -1 | F15: 1 | G15: 1 | H15: 0 | I15: 3 | J15: 1 | M15: 1 | N15: -98

Sheet Stunty
A1: Player | B1: Points | C1: TD For | D1: TD Against | E1: TD Net | F1: Cas For | G1: Cas Against | H1: Cas Net | I1: Bonus1 | J1: Bonus2 | K1: Wins | L1: Draws | M1: Losses | N1: Opp Score | O1: Race | P1: Group

Sheet GroupFixtures

Sheet GroupTable

Sheet Presentation
A1: Round | B1: 1
A3: Board | B3: Home | C3: Away | D3: Home Team | E3: Away Team | F3: Home TD | G3: Away TD | H3: Home Cas | I3: Away Cas
A4: 1 | B4: =IF(A4="","",OFFSET(INDIRECT("Round"&Round&"!B1"),$A4,0)) -> d | C4: =IF(A4="","",OFFSET(INDIRECT("Round"&Round&"!c1"),$A4,0)) -> b | D4: =IF(A4="","",OFFSET(INDIRECT("Round"&Round&"!n1"),$A4,0)) -> 0 | E4: =IF(A4="","",OFFSET(INDIRECT("Round"&Round&"!o1"),$A4,0)) -> 0
A5: =IF(A4="",A3+1,IF(ROUNDUP(A4/TeamSize,0)=A4/TeamSize,"",A4+1)) -> 2 | B5: a | C5: c | D5: 0 | E5: 0
A6: =IF(A5="",A4+1,IF(ROUNDUP(A5/TeamSize,0)=A5/TeamSize,"",A5+1)) -> 3 | B6: n | C6: m | D6: 0 | E6: 0
A7: =IF(A6="",A5+1,IF(ROUNDUP(A6/TeamSize,0)=A6/TeamSize,"",A6+1)) -> 4 | B7: i | C7: e | D7: 0 | E7: 0
A8: =IF(A7="",A6+1,IF(ROUNDUP(A7/TeamSize,0)=A7/TeamSize,"",A7+1)) -> 
A9: =IF(A8="",A7+1,IF(ROUNDUP(A8/TeamSize,0)=A8/TeamSize,"",A8+1)) -> 5 | B9: l | C9: k | D9: 0 | E9: 0
A10: =IF(A9="",A8+1,IF(ROUNDUP(A9/TeamSize,0)=A9/TeamSize,"",A9+1)) -> 6 | B10: f | C10: h | D10: 0 | E10: 0
A11: =IF(A10="",A9+1,IF(ROUNDUP(A10/TeamSize,0)=A10/TeamSize,"",A10+1)) -> 7 | B11: j | C11: g | D11: 0 | E11: 0
A12: =IF(A11="",A10+1,IF(ROUNDUP(A11/TeamSize,0)=A11/TeamSize,"",A11+1)) -> 8 | B12: 0 | C12: 0 | D12: 0 | E12: 0
A13: =IF(A12="",A11+1,IF(ROUNDUP(A12/TeamSize,0)=A12/TeamSize,"",A12+1)) -> 
A14: =IF(A13="",A12+1,IF(ROUNDUP(A13/TeamSize,0)=A13/TeamSize,"",A13+1)) -> 9 | B14: 0 | C14: 0 | D14: 0 | E14: 0
A15: =IF(A14="",A13+1,IF(ROUNDUP(A14/TeamSize,0)=A14/TeamSize,"",A14+1)) -> 10 | B15: 0 | C15: 0 | D15: 0 | E15: 0
A16: =IF(A15="",A14+1,IF(ROUNDUP(A15/TeamSize,0)=A15/TeamSize,"",A15+1)) -> 11 | B16: 0 | C16: 0 | D16: 0 | E16: 0
A17: =IF(A16="",A15+1,IF(ROUNDUP(A16/TeamSize,0)=A16/TeamSize,"",A16+1)) -> 12 | B17: 0 | C17: 0 | D17: 0 | E17: 0
A18: =IF(A17="",A16+1,IF(ROUNDUP(A17/TeamSize,0)=A17/TeamSize,"",A17+1)) -> 
A19: =IF(A18="",A17+1,IF(ROUNDUP(A18/TeamSize,0)=A18/TeamSize,"",A18+1)) -> 13 | B19: 0 | C19: 0 | D19: 0 | E19: 0
A20: =IF(A19="",A18+1,IF(ROUNDUP(A19/TeamSize,0)=A19/TeamSize,"",A19+1)) -> 14 | B20: 0 | C20: 0 | D20: 0 | E20: 0
A21: =IF(A20="",A19+1,IF(ROUNDUP(A20/TeamSize,0)=A20/TeamSize,"",A20+1)) -> 15 | B21: 0 | C21: 0 | D21: 0 | E21: 0
A22: =IF(A21="",A20+1,IF(ROUNDUP(A21/TeamSize,0)=A21/TeamSize,"",A21+1)) -> 16 | B22: 0 | C22: 0 | D22: 0 | E22: 0
A23: =IF(A22="",A21+1,IF(ROUNDUP(A22/TeamSize,0)=A22/TeamSize,"",A22+1)) -> 
A24: =IF(A23="",A22+1,IF(ROUNDUP(A23/TeamSize,0)=A23/TeamSize,"",A23+1)) -> 17 | B24: 0 | C24: 0 | D24: 0 | E24: 0
A25: =IF(A24="",A23+1,IF(ROUNDUP(A24/TeamSize,0)=A24/TeamSize,"",A24+1)) -> 18 | B25: 0 | C25: 0 | D25: 0 | E25: 0
A26: =IF(A25="",A24+1,IF(ROUNDUP(A25/TeamSize,0)=A25/TeamSize,"",A25+1)) -> 19 | B26: 0 | C26: 0 | D26: 0 | E26: 0
A27: =IF(A26="",A25+1,IF(ROUNDUP(A26/TeamSize,0)=A26/TeamSize,"",A26+1)) -> 20 | B27: 0 | C27: 0 | D27: 0 | E27: 0
A28: =IF(A27="",A26+1,IF(ROUNDUP(A27/TeamSize,0)=A27/TeamSize,"",A27+1)) -> 
A29: =IF(A28="",A27+1,IF(ROUNDUP(A28/TeamSize,0)=A28/TeamSize,"",A28+1)) -> 21 | B29: 0 | C29: 0 | D29: 0 | E29: 0
A30: =IF(A29="",A28+1,IF(ROUNDUP(A29/TeamSize,0)=A29/TeamSize,"",A29+1)) -> 22 | B30: 0 | C30: 0 | D30: 0 | E30: 0
A31: =IF(A30="",A29+1,IF(ROUNDUP(A30/TeamSize,0)=A30/TeamSize,"",A30+1)) -> 23 | B31: 0 | C31: 0 | D31: 0 | E31: 0
A32: =IF(A31="",A30+1,IF(ROUNDUP(A31/TeamSize,0)=A31/TeamSize,"",A31+1)) -> 24 | B32: 0 | C32: 0 | D32: 0 | E32: 0
A33: =IF(A32="",A31+1,IF(ROUNDUP(A32/TeamSize,0)=A32/TeamSize,"",A32+1)) -> 
A34: =IF(A33="",A32+1,IF(ROUNDUP(A33/TeamSize,0)=A33/TeamSize,"",A33+1)) -> 25 | B34: 0 | C34: 0 | D34: 0 | E34: 0
A35: =IF(A34="",A33+1,IF(ROUNDUP(A34/TeamSize,0)=A34/TeamSize,"",A34+1)) -> 26 | B35: 0 | C35: 0 | D35: 0 | E35: 0
A36: =IF(A35="",A34+1,IF(ROUNDUP(A35/TeamSize,0)=A35/TeamSize,"",A35+1)) -> 27 | B36: =IF(A36="","",OFFSET(INDIRECT("Round"&Round&"!B1"),$A36,0)) -> 0 | C36: =IF(A36="","",OFFSET(INDIRECT("Round"&Round&"!c1"),$A36,0)) -> 0 | D36: =IF(A36="","",OFFSET(INDIRECT("Round"&Round&"!n1"),$A36,0)) -> 0 | E36: =IF(A36="","",OFFSET(INDIRECT("Round"&Round&"!o1"),$A36,0)) -> 0
A37: =IF(A36="",A35+1,IF(ROUNDUP(A36/TeamSize,0)=A36/TeamSize,"",A36+1)) -> 28 | B37: 0 | C37: 0 | D37: 0 | E37: 0
A38: =IF(A37="",A36+1,IF(ROUNDUP(A37/TeamSize,0)=A37/TeamSize,"",A37+1)) -> 
A39: =IF(A38="",A37+1,IF(ROUNDUP(A38/TeamSize,0)=A38/TeamSize,"",A38+1)) -> 29 | B39: 0 | C39: 0 | D39: 0 | E39: 0
A40: =IF(A39="",A38+1,IF(ROUNDUP(A39/TeamSize,0)=A39/TeamSize,"",A39+1)) -> 30 | B40: 0 | C40: 0 | D40: 0 | E40: 0
A41: =IF(A40="",A39+1,IF(ROUNDUP(A40/TeamSize,0)=A40/TeamSize,"",A40+1)) -> 31 | B41: 0 | C41: 0 | D41: 0 | E41: 0
A42: =IF(A41="",A40+1,IF(ROUNDUP(A41/TeamSize,0)=A41/TeamSize,"",A41+1)) -> 32 | B42: 0 | C42: 0 | D42: 0 | E42: 0
A43: =IF(A42="",A41+1,IF(ROUNDUP(A42/TeamSize,0)=A42/TeamSize,"",A42+1)) -> 
A44: =IF(A43="",A42+1,IF(ROUNDUP(A43/TeamSize,0)=A43/TeamSize,"",A43+1)) -> 33 | B44: 0 | C44: 0 | D44: 0 | E44: 0
A45: =IF(A44="",A43+1,IF(ROUNDUP(A44/TeamSize,0)=A44/TeamSize,"",A44+1)) -> 34 | B45: 0 | C45: 0 | D45: 0 | E45: 0
A46: =IF(A45="",A44+1,IF(ROUNDUP(A45/TeamSize,0)=A45/TeamSize,"",A45+1)) -> 35 | B46: 0 | C46: 0 | D46: 0 | E46: 0
A47: =IF(A46="",A45+1,IF(ROUNDUP(A46/TeamSize,0)=A46/TeamSize,"",A46+1)) -> 36 | B47: 0 | C47: 0 | D47: 0 | E47: 0
A48: =IF(A47="",A46+1,IF(ROUNDUP(A47/TeamSize,0)=A47/TeamSize,"",A47+1)) -> 
A49: =IF(A48="",A47+1,IF(ROUNDUP(A48/TeamSize,0)=A48/TeamSize,"",A48+1)) -> 37 | B49: 0 | C49: 0 | D49: 0 | E49: 0
A50: =IF(A49="",A48+1,IF(ROUNDUP(A49/TeamSize,0)=A49/TeamSize,"",A49+1)) -> 38 | B50: 0 | C50: 0 | D50: 0 | E50: 0
A51: =IF(A50="",A49+1,IF(ROUNDUP(A50/TeamSize,0)=A50/TeamSize,"",A50+1)) -> 39 | B51: 0 | C51: 0 | D51: 0 | E51: 0
A52: =IF(A51="",A50+1,IF(ROUNDUP(A51/TeamSize,0)=A51/TeamSize,"",A51+1)) -> 40 | B52: 0 | C52: 0 | D52: 0 | E52: 0
A53: =IF(A52="",A51+1,IF(ROUNDUP(A52/TeamSize,0)=A52/TeamSize,"",A52+1)) -> 
A54: =IF(A53="",A52+1,IF(ROUNDUP(A53/TeamSize,0)=A53/TeamSize,"",A53+1)) -> 41 | B54: 0 | C54: 0 | D54: 0 | E54: 0
A55: =IF(A54="",A53+1,IF(ROUNDUP(A54/TeamSize,0)=A54/TeamSize,"",A54+1)) -> 42 | B55: 0 | C55: 0 | D55: 0 | E55: 0
A56: =IF(A55="",A54+1,IF(ROUNDUP(A55/TeamSize,0)=A55/TeamSize,"",A55+1)) -> 43 | B56: 0 | C56: 0 | D56: 0 | E56: 0
A57: =IF(A56="",A55+1,IF(ROUNDUP(A56/TeamSize,0)=A56/TeamSize,"",A56+1)) -> 44 | B57: 0 | C57: 0 | D57: 0 | E57: 0
A58: =IF(A57="",A56+1,IF(ROUNDUP(A57/TeamSize,0)=A57/TeamSize,"",A57+1)) -> 
A59: =IF(A58="",A57+1,IF(ROUNDUP(A58/TeamSize,0)=A58/TeamSize,"",A58+1)) -> 45 | B59: 0 | C59: 0 | D59: 0 | E59: 0
A60: =IF(A59="",A58+1,IF(ROUNDUP(A59/TeamSize,0)=A59/TeamSize,"",A59+1)) -> 46 | B60: 0 | C60: 0 | D60: 0 | E60: 0
A61: =IF(A60="",A59+1,IF(ROUNDUP(A60/TeamSize,0)=A60/TeamSize,"",A60+1)) -> 47 | B61: 0 | C61: 0 | D61: 0 | E61: 0
A62: =IF(A61="",A60+1,IF(ROUNDUP(A61/TeamSize,0)=A61/TeamSize,"",A61+1)) -> 48 | B62: 0 | C62: 0 | D62: 0 | E62: 0
A63: =IF(A62="",A61+1,IF(ROUNDUP(A62/TeamSize,0)=A62/TeamSize,"",A62+1)) -> 
A64: =IF(A63="",A62+1,IF(ROUNDUP(A63/TeamSize,0)=A63/TeamSize,"",A63+1)) -> 49 | B64: 0 | C64: 0 | D64: 0 | E64: 0
A65: =IF(A64="",A63+1,IF(ROUNDUP(A64/TeamSize,0)=A64/TeamSize,"",A64+1)) -> 50 | B65: 0 | C65: 0 | D65: 0 | E65: 0
A66: =IF(A65="",A64+1,IF(ROUNDUP(A65/TeamSize,0)=A65/TeamSize,"",A65+1)) -> 51 | B66: 0 | C66: 0 | D66: 0 | E66: 0
A67: =IF(A66="",A65+1,IF(ROUNDUP(A66/TeamSize,0)=A66/TeamSize,"",A66+1)) -> 52 | B67: 0 | C67: 0 | D67: 0 | E67: 0
A68: =IF(A67="",A66+1,IF(ROUNDUP(A67/TeamSize,0)=A67/TeamSize,"",A67+1)) ->  | B68: =IF(A68="","",OFFSET(INDIRECT("Round"&Round&"!B1"),$A68,0)) ->  | C68: =IF(A68="","",OFFSET(INDIRECT("Round"&Round&"!c1"),$A68,0)) ->  | D68: =IF(A68="","",OFFSET(INDIRECT("Round"&Round&"!n1"),$A68,0)) ->  | E68: =IF(A68="","",OFFSET(INDIRECT("Round"&Round&"!o1"),$A68,0)) -> 
A69: =IF(A68="",A67+1,IF(ROUNDUP(A68/TeamSize,0)=A68/TeamSize,"",A68+1)) -> 53 | B69: 0 | C69: 0 | D69: 0 | E69: 0
A70: =IF(A69="",A68+1,IF(ROUNDUP(A69/TeamSize,0)=A69/TeamSize,"",A69+1)) -> 54 | B70: 0 | C70: 0 | D70: 0 | E70: 0
A71: =IF(A70="",A69+1,IF(ROUNDUP(A70/TeamSize,0)=A70/TeamSize,"",A70+1)) -> 55 | B71: 0 | C71: 0 | D71: 0 | E71: 0
A72: =IF(A71="",A70+1,IF(ROUNDUP(A71/TeamSize,0)=A71/TeamSize,"",A71+1)) -> 56 | B72: 0 | C72: 0 | D72: 0 | E72: 0
A73: =IF(A72="",A71+1,IF(ROUNDUP(A72/TeamSize,0)=A72/TeamSize,"",A72+1)) -> 
A74: =IF(A73="",A72+1,IF(ROUNDUP(A73/TeamSize,0)=A73/TeamSize,"",A73+1)) -> 57 | B74: 0 | C74: 0 | D74: 0 | E74: 0
A75: =IF(A74="",A73+1,IF(ROUNDUP(A74/TeamSize,0)=A74/TeamSize,"",A74+1)) -> 58 | B75: 0 | C75: 0 | D75: 0 | E75: 0
A76: =IF(A75="",A74+1,IF(ROUNDUP(A75/TeamSize,0)=A75/TeamSize,"",A75+1)) -> 59 | B76: 0 | C76: 0 | D76: 0 | E76: 0
A77: =IF(A76="",A75+1,IF(ROUNDUP(A76/TeamSize,0)=A76/TeamSize,"",A76+1)) -> 60 | B77: 0 | C77: 0 | D77: 0 | E77: 0
A78: =IF(A77="",A76+1,IF(ROUNDUP(A77/TeamSize,0)=A77/TeamSize,"",A77+1)) -> 
A79: =IF(A78="",A77+1,IF(ROUNDUP(A78/TeamSize,0)=A78/TeamSize,"",A78+1)) -> 61 | B79: 0 | C79: 0 | D79: 0 | E79: 0
A80: =IF(A79="",A78+1,IF(ROUNDUP(A79/TeamSize,0)=A79/TeamSize,"",A79+1)) -> 62 | B80: 0 | C80: 0 | D80: 0 | E80: 0
A81: =IF(A80="",A79+1,IF(ROUNDUP(A80/TeamSize,0)=A80/TeamSize,"",A80+1)) -> 63 | B81: 0 | C81: 0 | D81: 0 | E81: 0
A82: =IF(A81="",A80+1,IF(ROUNDUP(A81/TeamSize,0)=A81/TeamSize,"",A81+1)) -> 64 | B82: 0 | C82: 0 | D82: 0 | E82: 0
A83: =IF(A82="",A81+1,IF(ROUNDUP(A82/TeamSize,0)=A82/TeamSize,"",A82+1)) -> 
A84: =IF(A83="",A82+1,IF(ROUNDUP(A83/TeamSize,0)=A83/TeamSize,"",A83+1)) -> 65 | B84: 0 | C84: 0 | D84: 0 | E84: 0
A85: =IF(A84="",A83+1,IF(ROUNDUP(A84/TeamSize,0)=A84/TeamSize,"",A84+1)) -> 66 | B85: 0 | C85: 0 | D85: 0 | E85: 0
A86: =IF(A85="",A84+1,IF(ROUNDUP(A85/TeamSize,0)=A85/TeamSize,"",A85+1)) -> 67 | B86: 0 | C86: 0 | D86: 0 | E86: 0
A87: =IF(A86="",A85+1,IF(ROUNDUP(A86/TeamSize,0)=A86/TeamSize,"",A86+1)) -> 68 | B87: 0 | C87: 0 | D87: 0 | E87: 0
A88: =IF(A87="",A86+1,IF(ROUNDUP(A87/TeamSize,0)=A87/TeamSize,"",A87+1)) -> 
A89: =IF(A88="",A87+1,IF(ROUNDUP(A88/TeamSize,0)=A88/TeamSize,"",A88+1)) -> 69 | B89: 0 | C89: 0 | D89: 0 | E89: 0
A90: =IF(A89="",A88+1,IF(ROUNDUP(A89/TeamSize,0)=A89/TeamSize,"",A89+1)) -> 70 | B90: 0 | C90: 0 | D90: 0 | E90: 0
A91: =IF(A90="",A89+1,IF(ROUNDUP(A90/TeamSize,0)=A90/TeamSize,"",A90+1)) -> 71 | B91: 0 | C91: 0 | D91: 0 | E91: 0
A92: =IF(A91="",A90+1,IF(ROUNDUP(A91/TeamSize,0)=A91/TeamSize,"",A91+1)) -> 72 | B92: 0 | C92: 0 | D92: 0 | E92: 0
A93: =IF(A92="",A91+1,IF(ROUNDUP(A92/TeamSize,0)=A92/TeamSize,"",A92+1)) -> 
A94: =IF(A93="",A92+1,IF(ROUNDUP(A93/TeamSize,0)=A93/TeamSize,"",A93+1)) -> 73 | B94: 0 | C94: 0 | D94: 0 | E94: 0
A95: =IF(A94="",A93+1,IF(ROUNDUP(A94/TeamSize,0)=A94/TeamSize,"",A94+1)) -> 74 | B95: 0 | C95: 0 | D95: 0 | E95: 0
A96: =IF(A95="",A94+1,IF(ROUNDUP(A95/TeamSize,0)=A95/TeamSize,"",A95+1)) -> 75 | B96: 0 | C96: 0 | D96: 0 | E96: 0
A97: =IF(A96="",A95+1,IF(ROUNDUP(A96/TeamSize,0)=A96/TeamSize,"",A96+1)) -> 76 | B97: 0 | C97: 0 | D97: 0 | E97: 0
A98: =IF(A97="",A96+1,IF(ROUNDUP(A97/TeamSize,0)=A97/TeamSize,"",A97+1)) -> 
A99: =IF(A98="",A97+1,IF(ROUNDUP(A98/TeamSize,0)=A98/TeamSize,"",A98+1)) -> 77 | B99: 0 | C99: 0 | D99: 0 | E99: 0
A100: =IF(A99="",A98+1,IF(ROUNDUP(A99/TeamSize,0)=A99/TeamSize,"",A99+1)) -> 78 | B100: =IF(A100="","",OFFSET(INDIRECT("Round"&Round&"!B1"),$A100,0)) -> 0 | C100: =IF(A100="","",OFFSET(INDIRECT("Round"&Round&"!c1"),$A100,0)) -> 0 | D100: =IF(A100="","",OFFSET(INDIRECT("Round"&Round&"!n1"),$A100,0)) -> 0 | E100: =IF(A100="","",OFFSET(INDIRECT("Round"&Round&"!o1"),$A100,0)) -> 0
A101: =IF(A100="",A99+1,IF(ROUNDUP(A100/TeamSize,0)=A100/TeamSize,"",A100+1)) -> 79 | B101: 0 | C101: 0 | D101: 0 | E101: 0
A102: =IF(A101="",A100+1,IF(ROUNDUP(A101/TeamSize,0)=A101/TeamSize,"",A101+1)) -> 80 | B102: 0 | C102: 0 | D102: 0 | E102: 0
A103: =IF(A102="",A101+1,IF(ROUNDUP(A102/TeamSize,0)=A102/TeamSize,"",A102+1)) -> 
A104: =IF(A103="",A102+1,IF(ROUNDUP(A103/TeamSize,0)=A103/TeamSize,"",A103+1)) -> 81 | B104: 0 | C104: 0 | D104: 0 | E104: 0
A105: =IF(A104="",A103+1,IF(ROUNDUP(A104/TeamSize,0)=A104/TeamSize,"",A104+1)) -> 82 | B105: 0 | C105: 0 | D105: 0 | E105: 0
A106: =IF(A105="",A104+1,IF(ROUNDUP(A105/TeamSize,0)=A105/TeamSize,"",A105+1)) -> 83 | B106: 0 | C106: 0 | D106: 0 | E106: 0
A107: =IF(A106="",A105+1,IF(ROUNDUP(A106/TeamSize,0)=A106/TeamSize,"",A106+1)) -> 84 | B107: 0 | C107: 0 | D107: 0 | E107: 0
A108: =IF(A107="",A106+1,IF(ROUNDUP(A107/TeamSize,0)=A107/TeamSize,"",A107+1)) -> 
A109: =IF(A108="",A107+1,IF(ROUNDUP(A108/TeamSize,0)=A108/TeamSize,"",A108+1)) -> 85 | B109: 0 | C109: 0 | D109: 0 | E109: 0
A110: =IF(A109="",A108+1,IF(ROUNDUP(A109/TeamSize,0)=A109/TeamSize,"",A109+1)) -> 86 | B110: 0 | C110: 0 | D110: 0 | E110: 0
A111: =IF(A110="",A109+1,IF(ROUNDUP(A110/TeamSize,0)=A110/TeamSize,"",A110+1)) -> 87 | B111: 0 | C111: 0 | D111: 0 | E111: 0
A112: =IF(A111="",A110+1,IF(ROUNDUP(A111/TeamSize,0)=A111/TeamSize,"",A111+1)) -> 88 | B112: 0 | C112: 0 | D112: 0 | E112: 0
A113: =IF(A112="",A111+1,IF(ROUNDUP(A112/TeamSize,0)=A112/TeamSize,"",A112+1)) -> 
A114: =IF(A113="",A112+1,IF(ROUNDUP(A113/TeamSize,0)=A113/TeamSize,"",A113+1)) -> 89 | B114: 0 | C114: 0 | D114: 0 | E114: 0
A115: =IF(A114="",A113+1,IF(ROUNDUP(A114/TeamSize,0)=A114/TeamSize,"",A114+1)) -> 90 | B115: 0 | C115: 0 | D115: 0 | E115: 0
A116: =IF(A115="",A114+1,IF(ROUNDUP(A115/TeamSize,0)=A115/TeamSize,"",A115+1)) -> 91 | B116: 0 | C116: 0 | D116: 0 | E116: 0
A117: =IF(A116="",A115+1,IF(ROUNDUP(A116/TeamSize,0)=A116/TeamSize,"",A116+1)) -> 92 | B117: 0 | C117: 0 | D117: 0 | E117: 0
A118: =IF(A117="",A116+1,IF(ROUNDUP(A117/TeamSize,0)=A117/TeamSize,"",A117+1)) -> 
A119: =IF(A118="",A117+1,IF(ROUNDUP(A118/TeamSize,0)=A118/TeamSize,"",A118+1)) -> 93 | B119: 0 | C119: 0 | D119: 0 | E119: 0
A120: =IF(A119="",A118+1,IF(ROUNDUP(A119/TeamSize,0)=A119/TeamSize,"",A119+1)) -> 94 | B120: 0 | C120: 0 | D120: 0 | E120: 0
A121: =IF(A120="",A119+1,IF(ROUNDUP(A120/TeamSize,0)=A120/TeamSize,"",A120+1)) -> 95 | B121: 0 | C121: 0 | D121: 0 | E121: 0
A122: =IF(A121="",A120+1,IF(ROUNDUP(A121/TeamSize,0)=A121/TeamSize,"",A121+1)) -> 96 | B122: 0 | C122: 0 | D122: 0 | E122: 0
A123: =IF(A122="",A121+1,IF(ROUNDUP(A122/TeamSize,0)=A122/TeamSize,"",A122+1)) -> 
A124: =IF(A123="",A122+1,IF(ROUNDUP(A123/TeamSize,0)=A123/TeamSize,"",A123+1)) -> 97 | B124: 0 | C124: 0 | D124: 0 | E124: 0
A125: =IF(A124="",A123+1,IF(ROUNDUP(A124/TeamSize,0)=A124/TeamSize,"",A124+1)) -> 98 | B125: 0 | C125: 0 | D125: 0 | E125: 0
A126: =IF(A125="",A124+1,IF(ROUNDUP(A125/TeamSize,0)=A125/TeamSize,"",A125+1)) -> 99 | B126: 0 | C126: 0 | D126: 0 | E126: 0
A127: =IF(A126="",A125+1,IF(ROUNDUP(A126/TeamSize,0)=A126/TeamSize,"",A126+1)) -> 100 | B127: 0 | C127: 0 | D127: 0 | E127: 0
A128: =IF(A127="",A126+1,IF(ROUNDUP(A127/TeamSize,0)=A127/TeamSize,"",A127+1)) -> 
A129: =IF(A128="",A127+1,IF(ROUNDUP(A128/TeamSize,0)=A128/TeamSize,"",A128+1)) -> 101 | B129: 0 | C129: 0 | D129: 0 | E129: 0
A130: =IF(A129="",A128+1,IF(ROUNDUP(A129/TeamSize,0)=A129/TeamSize,"",A129+1)) -> 102 | B130: 0 | C130: 0 | D130: 0 | E130: 0
A131: =IF(A130="",A129+1,IF(ROUNDUP(A130/TeamSize,0)=A130/TeamSize,"",A130+1)) -> 103 | B131: 0 | C131: 0 | D131: 0 | E131: 0
A132: =IF(A131="",A130+1,IF(ROUNDUP(A131/TeamSize,0)=A131/TeamSize,"",A131+1)) -> 104 | B132: =IF(A132="","",OFFSET(INDIRECT("Round"&Round&"!B1"),$A132,0)) -> 0 | C132: =IF(A132="","",OFFSET(INDIRECT("Round"&Round&"!c1"),$A132,0)) -> 0 | D132: =IF(A132="","",OFFSET(INDIRECT("Round"&Round&"!n1"),$A132,0)) -> 0 | E132: =IF(A132="","",OFFSET(INDIRECT("Round"&Round&"!o1"),$A132,0)) -> 0
A133: =IF(A132="",A131+1,IF(ROUNDUP(A132/TeamSize,0)=A132/TeamSize,"",A132+1)) -> 
A134: =IF(A133="",A132+1,IF(ROUNDUP(A133/TeamSize,0)=A133/TeamSize,"",A133+1)) -> 105 | B134: 0 | C134: 0 | D134: 0 | E134: 0
A135: =IF(A134="",A133+1,IF(ROUNDUP(A134/TeamSize,0)=A134/TeamSize,"",A134+1)) -> 106 | B135: 0 | C135: 0 | D135: 0 | E135: 0
A136: =IF(A135="",A134+1,IF(ROUNDUP(A135/TeamSize,0)=A135/TeamSize,"",A135+1)) -> 107 | B136: 0 | C136: 0 | D136: 0 | E136: 0
A137: =IF(A136="",A135+1,IF(ROUNDUP(A136/TeamSize,0)=A136/TeamSize,"",A136+1)) -> 108 | B137: 0 | C137: 0 | D137: 0 | E137: 0
A138: =IF(A137="",A136+1,IF(ROUNDUP(A137/TeamSize,0)=A137/TeamSize,"",A137+1)) -> 
A139: =IF(A138="",A137+1,IF(ROUNDUP(A138/TeamSize,0)=A138/TeamSize,"",A138+1)) -> 109 | B139: 0 | C139: 0 | D139: 0 | E139: 0
A140: =IF(A139="",A138+1,IF(ROUNDUP(A139/TeamSize,0)=A139/TeamSize,"",A139+1)) -> 110 | B140: 0 | C140: 0 | D140: 0 | E140: 0
A141: =IF(A140="",A139+1,IF(ROUNDUP(A140/TeamSize,0)=A140/TeamSize,"",A140+1)) -> 111 | B141: 0 | C141: 0 | D141: 0 | E141: 0
A142: =IF(A141="",A140+1,IF(ROUNDUP(A141/TeamSize,0)=A141/TeamSize,"",A141+1)) -> 112 | B142: 0 | C142: 0 | D142: 0 | E142: 0
A143: =IF(A142="",A141+1,IF(ROUNDUP(A142/TeamSize,0)=A142/TeamSize,"",A142+1)) -> 
A144: =IF(A143="",A142+1,IF(ROUNDUP(A143/TeamSize,0)=A143/TeamSize,"",A143+1)) -> 113 | B144: 0 | C144: 0 | D144: 0 | E144: 0
A145: =IF(A144="",A143+1,IF(ROUNDUP(A144/TeamSize,0)=A144/TeamSize,"",A144+1)) -> 114 | B145: 0 | C145: 0 | D145: 0 | E145: 0
A146: =IF(A145="",A144+1,IF(ROUNDUP(A145/TeamSize,0)=A145/TeamSize,"",A145+1)) -> 115 | B146: 0 | C146: 0 | D146: 0 | E146: 0
A147: =IF(A146="",A145+1,IF(ROUNDUP(A146/TeamSize,0)=A146/TeamSize,"",A146+1)) -> 116 | B147: 0 | C147: 0 | D147: 0 | E147: 0
A148: =IF(A147="",A146+1,IF(ROUNDUP(A147/TeamSize,0)=A147/TeamSize,"",A147+1)) -> 
A149: =IF(A148="",A147+1,IF(ROUNDUP(A148/TeamSize,0)=A148/TeamSize,"",A148+1)) -> 117 | B149: 0 | C149: 0 | D149: 0 | E149: 0
A150: =IF(A149="",A148+1,IF(ROUNDUP(A149/TeamSize,0)=A149/TeamSize,"",A149+1)) -> 118 | B150: 0 | C150: 0 | D150: 0 | E150: 0
A151: =IF(A150="",A149+1,IF(ROUNDUP(A150/TeamSize,0)=A150/TeamSize,"",A150+1)) -> 119 | B151: 0 | C151: 0 | D151: 0 | E151: 0
A152: =IF(A151="",A150+1,IF(ROUNDUP(A151/TeamSize,0)=A151/TeamSize,"",A151+1)) -> 120 | B152: 0 | C152: 0 | D152: 0 | E152: 0
A153: =IF(A152="",A151+1,IF(ROUNDUP(A152/TeamSize,0)=A152/TeamSize,"",A152+1)) -> 
A154: =IF(A153="",A152+1,IF(ROUNDUP(A153/TeamSize,0)=A153/TeamSize,"",A153+1)) -> 121 | B154: 0 | C154: 0 | D154: 0 | E154: 0
A155: =IF(A154="",A153+1,IF(ROUNDUP(A154/TeamSize,0)=A154/TeamSize,"",A154+1)) -> 122 | B155: 0 | C155: 0 | D155: 0 | E155: 0
A156: =IF(A155="",A154+1,IF(ROUNDUP(A155/TeamSize,0)=A155/TeamSize,"",A155+1)) -> 123 | B156: 0 | C156: 0 | D156: 0 | E156: 0
A157: =IF(A156="",A155+1,IF(ROUNDUP(A156/TeamSize,0)=A156/TeamSize,"",A156+1)) -> 124 | B157: 0 | C157: 0 | D157: 0 | E157: 0
A158: =IF(A157="",A156+1,IF(ROUNDUP(A157/TeamSize,0)=A157/TeamSize,"",A157+1)) -> 
A159: =IF(A158="",A157+1,IF(ROUNDUP(A158/TeamSize,0)=A158/TeamSize,"",A158+1)) -> 125 | B159: 0 | C159: 0 | D159: 0 | E159: 0
A160: =IF(A159="",A158+1,IF(ROUNDUP(A159/TeamSize,0)=A159/TeamSize,"",A159+1)) -> 126 | B160: 0 | C160: 0 | D160: 0 | E160: 0
A161: =IF(A160="",A159+1,IF(ROUNDUP(A160/TeamSize,0)=A160/TeamSize,"",A160+1)) -> 127 | B161: 0 | C161: 0 | D161: 0 | E161: 0
A162: =IF(A161="",A160+1,IF(ROUNDUP(A161/TeamSize,0)=A161/TeamSize,"",A161+1)) -> 128 | B162: 0 | C162: 0 | D162: 0 | E162: 0
A163: =IF(A162="",A161+1,IF(ROUNDUP(A162/TeamSize,0)=A162/TeamSize,"",A162+1)) -> 
A164: =IF(A163="",A162+1,IF(ROUNDUP(A163/TeamSize,0)=A163/TeamSize,"",A163+1)) -> 129 | B164: =IF(A164="","",OFFSET(INDIRECT("Round"&Round&"!B1"),$A164,0)) -> 0 | C164: =IF(A164="","",OFFSET(INDIRECT("Round"&Round&"!c1"),$A164,0)) -> 0 | D164: =IF(A164="","",OFFSET(INDIRECT("Round"&Round&"!n1"),$A164,0)) -> 0 | E164: =IF(A164="","",OFFSET(INDIRECT("Round"&Round&"!o1"),$A164,0)) -> 0
A165: =IF(A164="",A163+1,IF(ROUNDUP(A164/TeamSize,0)=A164/TeamSize,"",A164+1)) -> 130 | B165: 0 | C165: 0 | D165: 0 | E165: 0
A166: =IF(A165="",A164+1,IF(ROUNDUP(A165/TeamSize,0)=A165/TeamSize,"",A165+1)) -> 131 | B166: 0 | C166: 0 | D166: 0 | E166: 0
A167: =IF(A166="",A165+1,IF(ROUNDUP(A166/TeamSize,0)=A166/TeamSize,"",A166+1)) -> 132 | B167: 0 | C167: 0 | D167: 0 | E167: 0
A168: =IF(A167="",A166+1,IF(ROUNDUP(A167/TeamSize,0)=A167/TeamSize,"",A167+1)) -> 
A169: =IF(A168="",A167+1,IF(ROUNDUP(A168/TeamSize,0)=A168/TeamSize,"",A168+1)) -> 133 | B169: 0 | C169: 0 | D169: 0 | E169: 0
A170: =IF(A169="",A168+1,IF(ROUNDUP(A169/TeamSize,0)=A169/TeamSize,"",A169+1)) -> 134 | B170: 0 | C170: 0 | D170: 0 | E170: 0
A171: =IF(A170="",A169+1,IF(ROUNDUP(A170/TeamSize,0)=A170/TeamSize,"",A170+1)) -> 135 | B171: 0 | C171: 0 | D171: 0 | E171: 0
A172: =IF(A171="",A170+1,IF(ROUNDUP(A171/TeamSize,0)=A171/TeamSize,"",A171+1)) -> 136 | B172: 0 | C172: 0 | D172: 0 | E172: 0
A173: =IF(A172="",A171+1,IF(ROUNDUP(A172/TeamSize,0)=A172/TeamSize,"",A172+1)) -> 
A174: =IF(A173="",A172+1,IF(ROUNDUP(A173/TeamSize,0)=A173/TeamSize,"",A173+1)) -> 137 | B174: 0 | C174: 0 | D174: 0 | E174: 0
A175: =IF(A174="",A173+1,IF(ROUNDUP(A174/TeamSize,0)=A174/TeamSize,"",A174+1)) -> 138 | B175: 0 | C175: 0 | D175: 0 | E175: 0
A176: =IF(A175="",A174+1,IF(ROUNDUP(A175/TeamSize,0)=A175/TeamSize,"",A175+1)) -> 139 | B176: 0 | C176: 0 | D176: 0 | E176: 0
A177: =IF(A176="",A175+1,IF(ROUNDUP(A176/TeamSize,0)=A176/TeamSize,"",A176+1)) -> 140 | B177: 0 | C177: 0 | D177: 0 | E177: 0
A178: =IF(A177="",A176+1,IF(ROUNDUP(A177/TeamSize,0)=A177/TeamSize,"",A177+1)) -> 
A179: =IF(A178="",A177+1,IF(ROUNDUP(A178/TeamSize,0)=A178/TeamSize,"",A178+1)) -> 141 | B179: 0 | C179: 0 | D179: 0 | E179: 0
A180: =IF(A179="",A178+1,IF(ROUNDUP(A179/TeamSize,0)=A179/TeamSize,"",A179+1)) -> 142 | B180: 0 | C180: 0 | D180: 0 | E180: 0
A181: =IF(A180="",A179+1,IF(ROUNDUP(A180/TeamSize,0)=A180/TeamSize,"",A180+1)) -> 143 | B181: 0 | C181: 0 | D181: 0 | E181: 0
A182: =IF(A181="",A180+1,IF(ROUNDUP(A181/TeamSize,0)=A181/TeamSize,"",A181+1)) -> 144 | B182: 0 | C182: 0 | D182: 0 | E182: 0
A183: =IF(A182="",A181+1,IF(ROUNDUP(A182/TeamSize,0)=A182/TeamSize,"",A182+1)) -> 

Sheet GroupMatrix

Sheet Matrix
B1: a | C1: b | D1: c | E1: d | F1: e | G1: f | H1: g | I1: h | J1: i | K1: j | L1: k | M1: l | N1: m | O1: n | CW1: Driesfield | CX1: kfoged | CY1: Podfrey | CZ1: valkohukka | DA1: Skoberget | DB1: brocCooli | DC1: Ploppy_McPloppy | DD1: BiBi | DE1: Matt le fou | DF1: Candlejack | DG1: Purdindas | DH1: JJ | DI1: Wilzif | DJ1: noraal | DK1: cz | DL1: Loki | DM1: gninocker | DN1: Mewash | DO1: Leonek | DP1: JamesEs | DQ1: Duke_Luthor_Von_Hawkfire | DR1: Jokaero | DS1: Duckwing | DT1: Justicium | DU1: Liam | DV1: Endalos | DW1: bothun | DX1: Inforthepain | DY1: sigu70
A2: a | D2: R1, 1 - 1 | CW2: R1, 1 - 0 | CX2: R5, 1 - 0 | CY2: R1, 1 - 0 | CZ2: R3, 0 - 1 | DB2: R4, 1 - 0 | DC2: R6, 1 - 0 | DE2: R1, 0.5 - 0.5 | DF2: R4, 4 - 18 | DG2: R2, 0 - 1 | DI2: R4, 1 - 0 | DK2: R5, 0 - 1 | DL2: R7, 0.5 - 0.5 | DM2: R1, 1 - 0 | DN2: R8, 1 - 0 | DO2: R3, 0 - 1 | DP2: R3, 1 - 0 | DQ2: R3, 23 - 5 | DS2: R3, 0 - 1 | DU2: R1, 0 - 1 | DX2: R3, 1 - 0 | DY2: R5, 1 - 0
A3: b | E3: R1, 1 - 1 | CX3: R1, 0.5 - 0.5 | CZ3: R4, 0.5 - 0.5 | DA3: R5, 0.5 - 0.5 | DB3: R2, 0 - 1 | DC3: R1, 1 - 0 | DF3: R4, 0.5 - 0.5 | DH3: R3, 1 - 0 | DJ3: R1, 0.5 - 0.5 | DL3: R3, 0.5 - 0.5 | DM3: R1, 2 - 0 | DQ3: R1, 1 - 0 | DR3: R3, 0 - 1 | DS3: R5, 1 - 0 | DV3: R4, 5 - 22 | DW3: R6, 0 - 1
A4: c | B4: R1, 1 - 1 | CW4: R1, 0.5 - 0.5 | CX4: R4, 0.5 - 0.5 | CY4: R1, 0 - 1 | CZ4: R2, 0.5 - 0.5 | DB4: R3, 0 - 1 | DC4: R3, 1 - 0 | DD4: R4, 0 - 1 | DE4: R4, 0.5 - 0.5 | DF4: R5, 3 - 20 | DG4: R4, 0 - 1 | DJ4: R5, 0 - 1 | DK4: R6, 1 - 0 | DL4: R6, 1 - 0 | DM4: R1, 1 - 0 | DN4: R3, 1 - 0 | DO4: R2, 0 - 1 | DP4: R1, 0.5 - 0.5 | DQ4: R2, 0 - 1 | DT4: R2, 0 - 1 | DU4: R2, 22 - 6 | DV4: R5, 0.5 - 0.5 | DW4: R5, 1 - 0 | DX4: R2, 0 - 1
A5: d | C5: R1, 1 - 1 | CW5: R4, 0 - 1 | CX5: R5, 0.5 - 0.5 | CY5: R1, 0 - 1 | CZ5: R1, 1 - 0 | DA5: R1, 0.5 - 0.5 | DB5: R2, 0 - 1 | DC5: R4, 0.5 - 0.5 | DD5: R3, 0.5 - 0.5 | DE5: R7, 1 - 0 | DH5: R6, 0 - 1 | DI5: R1, 0 - 1 | DJ5: R3, 0.5 - 0.5 | DK5: R6, 0.5 - 0.5 | DL5: R4, 0.5 - 0.5 | DM5: R1, 1 - 0 | DN5: R4, 0.5 - 0.5 | DP5: R2, 1 - 0 | DQ5: R1, 0.5 - 0.5 | DR5: R3, 0 - 1 | DT5: R3, 21 - 4 | DU5: R2, 0 - 1 | DV5: R6, 0.5 - 0.5 | DX5: R3, 1 - 0 | DY5: R6, 19 - 3
A6: e | J6: R1, 1 - 1 | CY6: R5, 0 - 1 | CZ6: R2, 1 - 0 | DA6: R1, 0.5 - 0.5 | DB6: R2, 0.5 - 0.5 | DD6: R1, 0 - 1 | DE6: R4, 1 - 0 | DF6: R5, 1 - 0 | DG6: R4, 0 - 1 | DH6: R1, 0 - 1 | DI6: R5, 0 - 1 | DJ6: R3, 0.5 - 0.5 | DK6: R1, 0 - 1 | DL6: R1, 0.5 - 0.5 | DO6: R5, 0 - 1 | DP6: R1, 0.5 - 0.5 | DS6: R6, 1 - 0 | DT6: R3, 1 - 0 | DW6: R2, 1 - 0 | DY6: R6, 0 - 1
A7: f | I7: R1, 0 - 2 | CW7: R5, 1 - 0 | CX7: R1, 0 - 1 | CY7: R5, 0.5 - 0.5 | CZ7: R4, 0 - 1 | DA7: R6, 0.5 - 0.5 | DC7: R4, 0.5 - 0.5 | DE7: R4, 0.5 - 0.5 | DF7: R6, 0.5 - 0.5 | DG7: R1, 0.5 - 0.5 | DH7: R3, 1 - 0 | DI7: R3, 1 - 0 | DJ7: R6, 0.5 - 0.5 | DK7: R3, 0.5 - 0.5 | DL7: R2, 1 - 0 | DM7: R2, 1 - 0 | DN7: R3, 0.5 - 0.5 | DO7: R1, 1 - 0 | DP7: R7, 1 - 0 | DQ7: R3, 1 - 0 | DR7: R5, 0.5 - 0.5 | DU7: R3, 1 - 0 | DV7: R2, 1 - 0 | DW7: R5, 0 - 1
A8: g | K8: R1, 0 - 2 | CW8: R1, 1 - 0 | CY8: R4, 0 - 1 | CZ8: R1, 1 - 0 | DA8: R3, 1 - 0 | DB8: R1, 1 - 0 | DD8: R5, 0.5 - 0.5 | DF8: R3, 0 - 1 | DG8: R7, 0 - 1 | DH8: R4, 1 - 0 | DJ8: R2, 1 - 0 | DL8: R1, 0 - 1 | DM8: R5, 1 - 0 | DN8: R1, 1 - 0 | DO8: R2, 0 - 1 | DQ8: R1, 0.5 - 0.5 | DT8: R7, 0 - 1 | DV8: R1, 0 - 2 | DW8: R5, 0.5 - 0.5 | DY8: R2, 0 - 1
A9: h | G9: R1, 2 - 0 | CW9: R1, 0 - 1 | CX9: R1, 1 - 0 | CY9: R1, 0.5 - 0.5 | CZ9: R5, 0 - 1 | DC9: R3, 0 - 1 | DD9: R7, 0.5 - 0.5 | DF9: R1, 1 - 0 | DH9: R4, 0 - 1 | DI9: R4, 0 - 1 | DJ9: R1, 0 - 1 | DK9: R2, 1 - 0 | DM9: R3, 0 - 1 | DO9: R2, 0.5 - 0.5 | DS9: R2, 1 - 0 | DT9: R4, 19 - 4 | DU9: R5, 0.5 - 0.5 | DV9: R2, 0.5 - 0.5 | DX9: R6, 0.5 - 0.5 | DY9: R3, 1 - 0
A10: i | F10: R1, 1 - 1 | CW10: R4, 1 - 0 | CY10: R1, 0.5 - 0.5 | CZ10: R3, 0 - 1 | DA10: R1, 1 - 0 | DB10: R2, 1 - 0 | DC10: R2, 0.5 - 0.5 | DD10: R2, 1 - 0 | DE10: R2, 1 - 0 | DF10: R1, 0.5 - 0.5 | DG10: R1, 0.5 - 0.5 | DH10: R2, 0.5 - 0.5 | DI10: R5, 0 - 1 | DK10: R1, 1 - 0 | DL10: R6, 1 - 0 | DM10: R6, 0.5 - 0.5 | DP10: R1, 0.5 - 0.5 | DQ10: R2, 0 - 1 | DR10: R3, 0.5 - 0.5 | DS10: R1, 0.5 - 0.5 | DT10: R1, 0.5 - 0.5 | DV10: R3, 1 - 0 | DW10: R4, 1 - 0 | DX10: R5, 0.5 - 0.5 | DY10: R1, 1 - 0
A11: j | H11: R1, 2 - 0 | CX11: R1, 1 - 0 | CY11: R1, 1 - 0 | CZ11: R4, 1 - 0 | DA11: R1, 0 - 1 | DB11: R2, 1 - 0 | DC11: R1, 0.5 - 0.5 | DD11: R6, 0.5 - 0.5 | DE11: R1, 0 - 1 | DF11: R3, 1 - 0 | DH11: R2, 0.5 - 0.5 | DI11: R2, 0.5 - 0.5 | DJ11: R1, 0.5 - 0.5 | DK11: R2, 1 - 0 | DL11: R6, 1 - 0 | DM11: R7, 0.5 - 0.5 | DN11: R1, 0.5 - 0.5 | DP11: R2, 1 - 0 | DS11: R5, 1 - 0 | DT11: R5, 0 - 1 | DV11: R1, 0.5 - 0.5 | DW11: R1, 0 - 1 | DX11: R1, 0.5 - 0.5 | DY11: R4, 1 - 0
A12: k | M12: R1, 2 - 0 | CW12: R1, 1 - 0 | CY12: R8, 0 - 1 | CZ12: R1, 0.5 - 0.5 | DA12: R3, 1 - 0 | DB12: R3, 0 - 1 | DC12: R3, 0.5 - 0.5 | DD12: R1, 1 - 0 | DF12: R2, 0.5 - 0.5 | DG12: R2, 1 - 0 | DH12: R1, 1 - 0 | DJ12: R4, 20 - 3 | DK12: R2, 1 - 0 | DM12: R2, 1 - 0 | DO12: R1, 0.5 - 0.5 | DR12: R1, 0.5 - 0.5 | DT12: R3, 1 - 0 | DU12: R1, 1 - 0 | DW12: R1, 0 - 1
A13: l | L13: R1, 0 - 2 | CW13: R4, 0.5 - 0.5 | CZ13: R1, 0.5 - 0.5 | DA13: R1, 0.5 - 0.5 | DB13: R1, 0 - 1 | DC13: R2, 0.5 - 0.5 | DD13: R4, 0 - 1 | DE13: R3, 0 - 1 | DF13: R2, 0 - 1 | DG13: R3, 0.5 - 0.5 | DH13: R2, 0.5 - 0.5 | DJ13: R2, 1 - 0 | DK13: R1, 1 - 1 | DL13: R8, 0.5 - 0.5 | DM13: R1, 1 - 0 | DP13: R4, 0 - 1 | DQ13: R2, 0 - 1 | DR13: R3, 0.5 - 0.5 | DU13: R4, 0 - 1 | DV13: R5, 0 - 1 | DW13: R1, 1 - 0 | DX13: R5, 0 - 1 | DY13: R1, 1 - 0
A14: m | O14: R1, 0 - 2 | CX14: R2, 0 - 1 | CZ14: R1, 0.5 - 0.5 | DA14: R4, 0 - 1 | DC14: R1, 0 - 1 | DD14: R6, 1 - 0 | DE14: R2, 1 - 0 | DI14: R2, 1 - 0 | DJ14: R2, 6 - 22 | DK14: R6, 0.5 - 0.5 | DN14: R5, 0.5 - 0.5 | DO14: R7, 0 - 1 | DP14: R2, 0 - 1 | DQ14: R1, 1 - 0 | DR14: R5, 0.5 - 0.5 | DT14: R1, 0.5 - 0.5 | DU14: R1, 0.5 - 0.5 | DV14: R6, 20 - 3 | DW14: R1, 0 - 1 | DX14: R1, 0 - 1
A15: n | N15: R1, 2 - 0 | CW15: R1, 0 - 1 | CX15: R1, 0.5 - 0.5 | CY15: R1, 2 - 0 | DB15: R3, 0.5 - 0.5 | DC15: R2, 1 - 0 | DE15: R3, 1 - 0 | DF15: R1, 0 - 1 | DG15: R1, 0.5 - 0.5 | DI15: R2, 1 - 0 | DJ15: R1, 0.5 - 0.5 | DK15: R3, 0.5 - 0.5 | DL15: R1, 1 - 0 | DN15: R2, 0.5 - 0.5 | DO15: R2, 0 - 1 | DP15: R6, 0 - 1 | DR15: R1, 0.5 - 0.5 | DT15: R4, 0 - 1 | DV15: R1, 0.5 - 0.5 | DW15: R3, 1 - 0 | DX15: R8, 0 - 1
CW16: R1, 0.5 - 0.5 | CX16: R4, 0 - 1 | CY16: R1, 0.5 - 0.5 | DA16: R2, 0 - 1 | DB16: R1, 0 - 1 | DC16: R2, 19 - 3 | DD16: R2, 0 - 1 | DE16: R2, 1 - 0 | DF16: R2, 1 - 0 | DG16: R2, 1 - 0 | DH16: R1, 1 - 0 | DI16: R3, 0 - 1 | DL16: R5, 0.5 - 0.5 | DM16: R2, 0 - 1 | DN16: R1, 1 - 0 | DO16: R2, 1 - 0 | DP16: R7, 1 - 0 | DR16: R7, 1 - 0 | DS16: R1, 0.5 - 0.5 | DT16: R1, 1 - 0 | DU16: R1, 0.5 - 0.5 | DX16: R3, 0.5 - 0.5
CW17: R1, 1 - 0 | CX17: R1, 0.5 - 0.5 | CY17: R4, 0.5 - 0.5 | DA17: R1, 0 - 1 | DB17: R3, 0.5 - 0.5 | DD17: R2, 0.5 - 0.5 | DI17: R1, 0 - 1 | DJ17: R4, 0 - 1 | DK17: R1, 1 - 0 | DL17: R2, 0.5 - 0.5 | DO17: R1, 0.5 - 0.5 | DP17: R1, 0 - 1 | DS17: R1, 1 - 0 | DT17: R2, 0 - 1 | DU17: R1, 1 - 0 | DV17: R1, 1 - 0 | DW17: R5, 0.5 - 0.5
CW18: R2, 0 - 1 | CX18: R2, 0.5 - 0.5 | CY18: R6, 1 - 0 | CZ18: R1, 1 - 0 | DA18: R1, 1 - 0 | DB18: R3, 0 - 1 | DC18: R4, 1 - 0 | DD18: R6, 0.5 - 0.5 | DE18: R1, 0 - 1 | DF18: R4, 1 - 0 | DH18: R1, 1 - 0 | DI18: R2, 0.5 - 0.5 | DL18: R1, 0 - 1 | DM18: R3, 1 - 0 | DN18: R3, 1 - 0 | DO18: R1, 0.5 - 0.5 | DQ18: R2, 0 - 1 | DT18: R2, 1 - 0 | DU18: R1, 0 - 1 | DX18: R1, 0.5 - 0.5 | DY18: R2, 12 - 10
CW19: R2, 0 - 1 | CX19: R2, 1 - 0 | CZ19: R2, 1 - 0 | DA19: R3, 0.5 - 0.5 | DC19: R1, 0 - 1 | DE19: R5, 0 - 1 | DF19: R4, 0.5 - 0.5 | DG19: R2, 0 - 1 | DI19: R3, 1 - 0 | DK19: R4, 0 - 1 | DM19: R1, 1 - 0 | DN19: R1, 0.5 - 0.5 | DO19: R2, 0 - 1 | DP19: R1, 1 - 0 | DQ19: R1, 0 - 1 | DR19: R5, 0.5 - 0.5 | DT19: R1, 0 - 1 | DU19: R5, 0 - 1 | DV19: R1, 1 - 0 | DY19: R3, 1 - 0
CW20: R3, 1 - 0 | CX20: R3, 0.5 - 0.5 | CY20: R6, 1 - 0 | CZ20: R5, 1 - 0 | DD20: R1, 1 - 1 | DE20: R3, 1 - 0 | DF20: R2, 0 - 1 | DG20: R4, 0.5 - 0.5 | DH20: R5, 1 - 0 | DI20: R3, 1 - 0 | DJ20: R3, 1 - 0 | DK20: R1, 0.5 - 0.5 | DL20: R2, 0.5 - 0.5 | DM20: R4, 0.5 - 0.5 | DN20: R1, 0.5 - 0.5 | DO20: R4, 0 - 1 | DT20: R1, 0.5 - 0.5 | DV20: R1, 0 - 1 | DW20: R2, 1 - 0 | DX20: R3, 1 - 0
CW21: R5, 1 - 0 | CX21: R3, 0 - 1 | CY21: R7, 1 - 0 | CZ21: R6, 0 - 1 | DA21: R4, 1 - 0 | DC21: R1, 0.5 - 0.5 | DD21: R4, 0.5 - 0.5 | DF21: R5, 1 - 0 | DG21: R3, 0.5 - 0.5 | DH21: R4, 0 - 1 | DI21: R1, 1 - 0 | DJ21: R5, 0.5 - 0.5 | DK21: R2, 1 - 0 | DL21: R1, 1 - 0 | DN21: R5, 0 - 1 | DO21: R1, 1 - 0 | DP21: R1, 0.5 - 0.5 | DS21: R2, 0 - 1 | DU21: R6, 1 - 0 | DV21: R1, 0.5 - 0.5 | DW21: R1, 1 - 0 | DY21: R2, 1 - 0
CW22: R3, 22 - 4 | CX22: R2, 1 - 0 | CY22: R2, 0 - 1 | DA22: R1, 0.5 - 0.5 | DB22: R2, 1 - 0 | DC22: R1, 0 - 1 | DF22: R3, 0 - 1 | DH22: R4, 1 - 0 | DI22: R3, 1 - 0 | DJ22: R1, 1 - 0 | DK22: R3, 0.5 - 0.5 | DL22: R5, 0.5 - 0.5 | DM22: R3, 0.5 - 0.5 | DP22: R4, 1 - 0 | DQ22: R1, 0 - 1 | DR22: R1, 0.5 - 0.5 | DS22: R2, 1 - 0 | DU22: R1, 0 - 1 | DY22: R1, 1 - 0
CW23: R4, 1 - 0 | CX23: R1, 0 - 1 | CY23: R3, 0.5 - 0.5 | CZ23: R2, 1 - 0 | DA23: R5, 0 - 1 | DB23: R1, 0.5 - 0.5 | DD23: R5, 0 - 1 | DE23: R2, 0 - 1 | DF23: R6, 0 - 1 | DH23: R3, 0 - 1 | DJ23: R1, 0.5 - 0.5 | DK23: R1, 1 - 0 | DL23: R2, 0 - 1 | DM23: R1, 0.5 - 0.5 | DN23: R2, 0 - 1 | DO23: R1, 0.5 - 0.5 | DP23: R3, 1 - 0 | DQ23: R4, 0.5 - 0.5 | DR23: R1, 1 - 0 | DU23: R5, 0.5 - 0.5 | DV23: R2, 0.5 - 0.5 | DX23: R1, 1 - 0
CY24: R4, 1 - 0 | CZ24: R3, 0.5 - 0.5 | DA24: R3, 0.5 - 0.5 | DB24: R6, 1 - 0 | DD24: R2, 0 - 1 | DE24: R3, 0 - 1 | DF24: R3, 1 - 0 | DH24: R4, 0.5 - 0.5 | DI24: R1, 1 - 0 | DJ24: R2, 0 - 1 | DK24: R3, 1 - 0 | DL24: R1, 0.5 - 0.5 | DM24: R1, 1 - 0 | DO24: R2, 0.5 - 0.5 | DP24: R1, 0.5 - 0.5 | DQ24: R3, 0.5 - 0.5 | DR24: R2, 0.5 - 0.5 | DS24: R1, 0 - 1 | DU24: R2, 0 - 1 | DW24: R1, 1 - 0 | DX24: R5, 0 - 1 | DY24: R4, 1 - 0
CW25: R3, 0 - 1 | CX25: R4, 0.5 - 0.5 | CY25: R5, 0 - 1 | CZ25: R3, 0.5 - 0.5 | DA25: R2, 0 - 1 | DB25: R4, 0 - 1 | DC25: R2, 0.5 - 0.5 | DD25: R3, 0 - 1 | DG25: R5, 1 - 0 | DH25: R1, 1 - 0 | DJ25: R1, 1 - 0 | DL25: R3, 1 - 0 | DM25: R2, 1 - 0 | DN25: R2, 0 - 1 | DP25: R1, 0.5 - 0.5 | DQ25: R4, 0.5 - 0.5 | DS25: R1, 0.5 - 0.5 | DT25: R1, 0 - 1 | DX25: R2, 0.5 - 0.5
CW26: R1, 1 - 0 | CX26: R2, 0 - 1 | DC26: R3, 0 - 1 | DD26: R1, 1 - 0 | DE26: R2, 1 - 0 | DG26: R3, 1 - 0 | DJ26: R1, 1 - 0 | DL26: R5, 1 - 0 | DM26: R3, 0.5 - 0.5 | DO26: R2, 1 - 0 | DQ26: R3, 0 - 1 | DR26: R1, 0.5 - 0.5 | DT26: R6, 0 - 1 | DU26: R2, 0 - 1 | DV26: R1, 1 - 0 | DX26: R1, 0.5 - 0.5 | DY26: R2, 0.5 - 0.5
CW27: R6, 0.5 - 0.5 | CY27: R2, 1 - 0 | CZ27: R7, 0 - 1 | DA27: R1, 0 - 1 | DC27: R1, 0.5 - 0.5 | DD27: R5, 1 - 0 | DF27: R2, 0.5 - 0.5 | DG27: R4, 1 - 0 | DH27: R2, 1 - 0 | DI27: R3, 0.5 - 0.5 | DJ27: R1, 21 - 4 | DK27: R3, 0.5 - 0.5 | DN27: R1, 1 - 0 | DO27: R3, 0.5 - 0.5 | DP27: R5, 1 - 0 | DQ27: R2, 0 - 1 | DR27: R1, 0.5 - 0.5 | DS27: R5, 0.5 - 0.5 | DT27: R5, 23 - 7 | DU27: R1, 0 - 1 | DX27: R6, 0.5 - 0.5 | DY27: R2, 0.5 - 0.5
CX28: R2, 0 - 1 | CZ28: R1, 0 - 1 | DA28: R2, 1 - 0 | DB28: R2, 0 - 1 | DC28: R3, 0 - 1 | DE28: R2, 0 - 1 | DF28: R2, 0 - 1 | DG28: R1, 1 - 0 | DI28: R1, 0 - 1 | DJ28: R5, 0 - 1 | DN28: R2, 1 - 0 | DO28: R3, 0.5 - 0.5 | DP28: R5, 0 - 1 | DQ28: R1, 0 - 1 | DR28: R6, 0.5 - 0.5 | DS28: R6, 0.5 - 0.5 | DT28: R3, 0.5 - 0.5 | DU28: R3, 1 - 0 | DV28: R1, 0.5 - 0.5 | DY28: R2, 0 - 1
CZ29: R2, 1 - 0 | DC29: R1, 1 - 0 | DE29: R3, 0.5 - 0.5 | DG29: R8, 0.5 - 0.5 | DH29: R6, 0 - 1 | DI29: R2, 0 - 1 | DJ29: R1, 2 - 0 | DM29: R4, 0 - 1 | DN29: R3, 0 - 1 | DO29: R5, 0 - 1 | DP29: R1, 0.5 - 0.5 | DR29: R1, 0.5 - 0.5 | DS29: R6, 0.5 - 0.5 | DU29: R3, 0.5 - 0.5 | DW29: R2, 0 - 1 | DY29: R1, 0 - 1
CW30: R2, 0 - 1 | CY30: R3, 0 - 1 | DA30: R4, 1 - 0 | DB30: R3, 0.5 - 0.5 | DC30: R2, 0 - 1 | DD30: R2, 0.5 - 0.5 | DE30: R1, 0.5 - 0.5 | DF30: R1, 0.5 - 0.5 | DG30: R3, 0.5 - 0.5 | DH30: R5, 0.5 - 0.5 | DJ30: R3, 1 - 0 | DK30: R5, 0 - 1 | DL30: R1, 0.5 - 0.5 | DO30: R6, 0 - 1 | DP30: R2, 0 - 1 | DQ30: R5, 0.5 - 0.5 | DR30: R3, 0.5 - 0.5 | DS30: R1, 1 - 0 | DT30: R8, 0.5 - 0.5 | DU30: R1, 0.5 - 0.5 | DV30: R6, 1 - 0 | DX30: R1, 1 - 0
CX31: R1, 1 - 0 | CY31: R4, 0.5 - 0.5 | CZ31: R3, 1 - 20 | DA31: R7, 0 - 1 | DB31: R1, 1 - 0 | DC31: R8, 0.5 - 0.5 | DD31: R2, 1 - 0 | DG31: R2, 0.5 - 0.5 | DH31: R3, 1 - 0 | DI31: R1, 0 - 1 | DJ31: R7, 1 - 0 | DL31: R3, 1 - 0 | DM31: R2, 0.5 - 0.5 | DN31: R5, 1 - 0 | DO31: R3, 0.5 - 0.5 | DP31: R1, 6 - 20 | DQ31: R4, 1 - 0 | DR31: R4, 1 - 0 | DS31: R2, 0.5 - 0.5 | DT31: R1, 0 - 1 | DU31: R6, 0.5 - 0.5 | DV31: R2, 1 - 0 | DW31: R2, 0.5 - 0.5 | DX31: R2, 0.5 - 0.5 | DY31: R3, 1 - 0
CW32: R4, 1 - 0 | CY32: R3, 0.5 - 0.5 | DA32: R5, 0 - 1 | DD32: R3, 1 - 0 | DE32: R2, 3 - 18 | DF32: R2, 1 - 0 | DG32: R1, 1 - 0 | DH32: R3, 0 - 1 | DK32: R2, 0.5 - 0.5 | DM32: R3, 0.5 - 0.5 | DQ32: R2, 1 - 0 | DR32: R2, 0 - 1 | DS32: R1, 0 - 1 | DT32: R2, 0.5 - 0.5 | DV32: R2, 0.5 - 0.5 | DW32: R1, 0 - 1 | DX32: R2, 0.5 - 0.5 | DY32: R6, 0 - 1
CX33: R4, 0 - 1 | CY33: R2, 1 - 0 | DB33: R1, 0.5 - 0.5 | DD33: R2, 0.5 - 0.5 | DE33: R5, 1 - 0 | DF33: R3, 0.5 - 0.5 | DG33: R5, 1 - 0 | DH33: R6, 20 - 5 | DJ33: R3, 0 - 1 | DL33: R2, 0 - 1 | DM33: R1, 0 - 1 | DN33: R5, 0 - 1 | DP33: R3, 0 - 1 | DQ33: R4, 0 - 1 | DR33: R1, 0 - 1 | DS33: R2, 1 - 0 | DU33: R2, 0.5 - 0.5 | DV33: R1, 1 - 0 | DW33: R6, 0.5 - 0.5 | DX33: R6, 0.5 - 0.5 | DY33: R1, 0.5 - 0.5
CW34: R3, 1 - 0 | CX34: R1, 0 - 1 | DA34: R5, 0 - 1 | DB34: R6, 1 - 0 | DD34: R2, 0.5 - 0.5 | DE34: R5, 0 - 1 | DF34: R2, 0.5 - 0.5 | DG34: R1, 0.5 - 0.5 | DI34: R6, 1 - 0 | DJ34: R2, 0.5 - 0.5 | DM34: R1, 0.5 - 0.5 | DN34: R4, 0.5 - 0.5 | DP34: R1, 1 - 0 | DQ34: R5, 1 - 0 | DR34: R4, 0.5 - 0.5 | DS34: R1, 0 - 1 | DT34: R4, 0.5 - 0.5 | DU34: R6, 0 - 1 | DX34: R5, 0.5 - 0.5 | DY34: R3, 0.5 - 0.5
CX35: R8, 0.5 - 0.5 | CY35: R4, 1 - 0 | DB35: R1, 1 - 0 | DC35: R7, 0.5 - 0.5 | DD35: R1, 0 - 1 | DE35: R2, 1 - 0 | DF35: R1, 1 - 0 | DI35: R1, 0.5 - 0.5 | DJ35: R5, 0 - 1 | DK35: R3, 1 - 0 | DL35: R4, 0 - 1 | DM35: R1, 0 - 1 | DO35: R4, 0.5 - 0.5 | DP35: R2, 0.5 - 0.5 | DQ35: R4, 0.5 - 0.5 | DR35: R1, 0 - 1 | DS35: R4, 3 - 18 | DT35: R1, 0 - 1 | DU35: R6, 1 - 0 | DW35: R4, 0 - 1 | DX35: R1, 1 - 0 | DY35: R5, 0.5 - 0.5
CX36: R4, 1 - 0 | CY36: R1, 0.5 - 0.5 | DB36: R3, 1 - 0 | DC36: R1, 0.5 - 0.5 | DD36: R6, 0.5 - 0.5 | DE36: R1, 1 - 0 | DG36: R6, 0.5 - 0.5 | DH36: R7, 0.5 - 0.5 | DI36: R2, 0.5 - 0.5 | DJ36: R3, 0 - 1 | DK36: R4, 0 - 1 | DL36: R6, 0 - 1 | DM36: R1, 0.5 - 0.5 | DN36: R1, 1 - 0 | DO36: R4, 0 - 1 | DP36: R3, 0.5 - 0.5 | DQ36: R5, 0 - 1 | DR36: R6, 0.5 - 0.5 | DS36: R1, 0.5 - 0.5 | DT36: R1, 0 - 1 | DU36: R5, 0.5 - 0.5 | DV36: R4, 0.5 - 0.5 | DW36: R6, 0.5 - 0.5 | DX36: R4, 0 - 1
CW37: R1, 0 - 1 | CX37: R6, 1 - 0 | CY37: R5, 0.5 - 0.5 | DA37: R6, 20 - 5 | DB37: R1, 1 - 1 | DC37: R2, 0 - 1 | DD37: R5, 0 - 1 | DE37: R1, 23 - 3 | DF37: R1, 1 - 0 | DG37: R5, 0 - 1 | DI37: R1, 0.5 - 0.5 | DJ37: R1, 0 - 1 | DK37: R2, 22 - 3 | DL37: R1, 0 - 1 | DM37: R4, 1 - 0 | DN37: R3, 1 - 0 | DO37: R5, 0 - 1 | DP37: R4, 20 - 4 | DQ37: R2, 0.5 - 0.5 | DR37: R1, 0 - 1 | DS37: R1, 1 - 0 | DU37: R1, 1 - 0 | DV37: R3, 1 - 0 | DW37: R2, 19 - 5 | DY37: R1, 1 - 0
CZ38: R5, 0.5 - 0.5 | DA38: R1, 0 - 1 | DB38: R5, 0 - 1 | DD38: R2, 0 - 1 | DE38: R6, 0 - 1 | DF38: R1, 1 - 0 | DG38: R1, 0 - 1 | DJ38: R1, 1 - 0 | DK38: R4, 0.5 - 0.5 | DL38: R3, 0.5 - 0.5 | DM38: R2, 0 - 1 | DP38: R4, 0.5 - 0.5 | DQ38: R1, 1 - 0 | DS38: R4, 0 - 1 | DT38: R5, 0.5 - 0.5 | DU38: R5, 0 - 1 | DV38: R3, 1 - 0 | DW38: R1, 0.5 - 0.5 | DX38: R1, 0 - 1
CW39: R4, 0.5 - 0.5 | CY39: R5, 18 - 2 | CZ39: R1, 0.5 - 0.5 | DD39: R4, 19 - 2 | DE39: R6, 0 - 1 | DF39: R6, 0 - 1 | DH39: R2, 0.5 - 0.5 | DJ39: R4, 1 - 0 | DK39: R1, 1 - 0 | DL39: R5, 0 - 1 | DM39: R3, 0 - 1 | DN39: R4, 1 - 0 | DO39: R2, 1 - 0 | DQ39: R1, 1 - 0 | DR39: R5, 0 - 1 | DS39: R8, 1 - 0 | DT39: R1, 1 - 0 | DV39: R6, 1 - 0 | DW39: R1, 0 - 1 | DX39: R3, 1 - 0 | DY39: R1, 0.5 - 0.5
CW40: R5, 0.5 - 0.5 | CX40: R4, 0 - 1 | DA40: R1, 0 - 1 | DB40: R2, 0.5 - 0.5 | DC40: R5, 1 - 0 | DD40: R1, 1 - 0 | DF40: R1, 9 - 10 | DH40: R4, 0 - 1 | DI40: R6, 0.5 - 0.5 | DK40: R4, 0.5 - 0.5 | DL40: R1, 0 - 1 | DM40: R5, 0.5 - 0.5 | DO40: R3, 0.5 - 0.5 | DP40: R3, 1 - 0 | DR40: R1, 1 - 0 | DS40: R5, 1 - 0 | DT40: R3, 0 - 1 | DU40: R4, 0.5 - 0.5 | DW40: R1, 0 - 1 | DX40: R1, 1 - 0 | DY40: R3, 0 - 1
CX41: R3, 0.5 - 0.5 | CY41: R4, 0 - 1 | DC41: R1, 0 - 1 | DD41: R3, 1 - 0 | DF41: R4, 1 - 0 | DG41: R1, 0 - 1 | DH41: R1, 0 - 1 | DI41: R1, 0 - 1 | DK41: R5, 1 - 0 | DL41: R4, 0.5 - 0.5 | DM41: R2, 0 - 1 | DO41: R1, 0.5 - 0.5 | DP41: R4, 0.5 - 0.5 | DR41: R1, 0 - 1 | DS41: R1, 0.5 - 0.5 | DT41: R3, 1 - 0 | DU41: R1, 0 - 1 | DV41: R1, 0 - 1 | DW41: R5, 0.5 - 0.5 | DY41: R4, 0 - 1
CW42: R1, 0.5 - 0.5 | CZ42: R6, 1 - 0 | DB42: R2, 20 - 3 | DC42: R2, 0.5 - 0.5 | DF42: R1, 1 - 0 | DG42: R1, 0 - 1 | DH42: R1, 0 - 1 | DI42: R1, 0.5 - 0.5 | DJ42: R5, 0 - 1 | DL42: R3, 0 - 1 | DM42: R6, 0 - 1 | DN42: R4, 0.5 - 0.5 | DO42: R6, 0 - 1 | DR42: R2, 1 - 0 | DT42: R1, 1 - 0 | DU42: R6, 0 - 1 | DV42: R2, 0.5 - 0.5 | DW42: R1, 0.5 - 0.5 | DX42: R1, 1 - 1
CW43: R4, 0 - 1 | CX43: R3, 0.5 - 0.5 | CY43: R1, 1 - 0 | CZ43: R5, 1 - 0 | DA43: R1, 0 - 1 | DB43: R1, 0.5 - 0.5 | DC43: R1, 1 - 0 | DD43: R1, 0 - 1 | DH43: R1, 0 - 1 | DI43: R2, 0.5 - 0.5 | DJ43: R3, 1 - 0 | DK43: R8, 1 - 0 | DN43: R2, 0.5 - 0.5 | DO43: R6, 0.5 - 0.5 | DP43: R5, 0 - 1 | DQ43: R2, 0.5 - 0.5 | DR43: R2, 1 - 0 | DS43: R1, 1 - 0 | DT43: R6, 0.5 - 0.5 | DU43: R1, 0 - 1 | DV43: R1, 0 - 1 | DW43: R2, 1 - 0 | DX43: R2, 0.5 - 0.5 | DY43: R5, 0 - 1
CW44: R5, 1 - 0 | CX44: R6, 0 - 1 | CZ44: R6, 0.5 - 0.5 | DA44: R4, 0 - 1 | DC44: R7, 0 - 1 | DE44: R5, 1 - 0 | DF44: R1, 0 - 1 | DG44: R1, 0.5 - 0.5 | DI44: R1, 0.5 - 0.5 | DJ44: R6, 0 - 1 | DL44: R5, 1 - 0 | DM44: R2, 1 - 0 | DP44: R3, 0 - 1 | DQ44: R2, 1 - 0 | DS44: R1, 2 - 0 | DU44: R3, 1 - 0 | DV44: R3, 0.5 - 0.5 | DW44: R2, 1 - 0 | DX44: R6, 0.5 - 0.5 | DY44: R2, 0 - 1
CY45: R4, 0.5 - 0.5 | DA45: R6, 0.5 - 0.5 | DB45: R3, 0.5 - 0.5 | DD45: R1, 1 - 0 | DE45: R4, 0.5 - 0.5 | DG45: R1, 1 - 0 | DJ45: R6, 1 - 0 | DK45: R1, 0.5 - 0.5 | DL45: R4, 0.5 - 0.5 | DM45: R3, 0 - 1 | DN45: R5, 1 - 0 | DO45: R2, 1 - 0 | DP45: R2, 1 - 0 | DR45: R5, 1 - 0 | DS45: R4, 1 - 0 | DT45: R2, 1 - 0 | DU45: R3, 0 - 1 | DV45: R1, 0.5 - 0.5 | DW45: R2, 1 - 0 | DX45: R1, 1 - 0
CW46: R1, 0 - 2 | CX46: R6, 0.5 - 0.5 | CZ46: R4, 1 - 0 | DA46: R2, 0.5 - 0.5 | DB46: R1, 0 - 1 | DC46: R1, 0 - 1 | DE46: R4, 0 - 1 | DI46: R1, 1 - 0 | DK46: R2, 1 - 0 | DO46: R3, 1 - 0 | DP46: R3, 0.5 - 0.5 | DQ46: R6, 0.5 - 0.5 | DR46: R1, 0 - 1 | DT46: R2, 1 - 0 | DU46: R4, 0 - 1 | DV46: R4, 0.5 - 0.5 | DW46: R8, 0 - 1 | DX46: R2, 0 - 1
CW47: R6, 0.5 - 0.5 | CY47: R5, 0.5 - 0.5 | CZ47: R1, 0.5 - 0.5 | DA47: R2, 0 - 1 | DB47: R6, 0.5 - 0.5 | DE47: R1, 0.5 - 0.5 | DF47: R3, 0 - 1 | DG47: R2, 0.5 - 0.5 | DH47: R1, 0 - 1 | DJ47: R2, 0.5 - 0.5 | DK47: R7, 0 - 1 | DN47: R4, 0.5 - 0.5 | DP47: R2, 1 - 0 | DQ47: R5, 0.5 - 0.5 | DR47: R7, 1 - 0 | DT47: R2, 1 - 0 | DU47: R2, 0 - 1 | DW47: R3, 0.5 - 0.5 | DX47: R3, 0 - 1 | DY47: R1, 1 - 0
CW48: R1, 0 - 1 | DB48: R1, 0.5 - 0.5 | DC48: R1, 1 - 0 | DE48: R5, 1 - 0 | DG48: R2, 0 - 1 | DI48: R1, 0 - 1 | DJ48: R2, 1 - 0 | DM48: R5, 0.5 - 0.5 | DN48: R6, 1 - 0 | DO48: R4, 1 - 0 | DP48: R2, 0 - 1 | DQ48: R3, 0.5 - 0.5 | DS48: R2, 0.5 - 0.5 | DT48: R1, 1 - 0 | DY48: R2, 1 - 0
CX49: R1, 0 - 1 | CY49: R6, 1 - 0 | DD49: R4, 0 - 1 | DE49: R8, 1 - 0 | DG49: R1, 1 - 0 | DH49: R1, 0.5 - 0.5 | DJ49: R4, 0 - 1 | DK49: R3, 0 - 1 | DL49: R6, 0 - 1 | DM49: R2, 0 - 1 | DO49: R3, 1 - 0 | DR49: R2, 0.5 - 0.5 | DT49: R2, 1 - 0 | DU49: R5, 0 - 1 | DV49: R7, 0.5 - 0.5 | DW49: R6, 0 - 1 | DX49: R2, 0.5 - 0.5 | DY49: R4, 0.5 - 0.5
CW50: R5, 1 - 0 | CY50: R3, 0 - 1 | CZ50: R3, 1 - 0 | DA50: R3, 0.5 - 0.5 | DB50: R1, 0 - 1 | DC50: R2, 0.5 - 0.5 | DD50: R3, 1 - 0 | DF50: R5, 0 - 1 | DG50: R1, 0 - 1 | DI50: R1, 0.5 - 0.5 | DJ50: R6, 0.5 - 0.5 | DK50: R1, 0 - 1 | DN50: R6, 10 - 11 | DO50: R2, 1 - 0 | DP50: R2, 0 - 1 | DQ50: R2, 1 - 0 | DR50: R1, 1 - 0 | DT50: R4, 1 - 0 | DU50: R4, 0 - 1 | DX50: R1, 0 - 1 | DY50: R3, 1 - 0
CX51: R1, 0 - 1 | CY51: R1, 0.5 - 0.5 | DB51: R1, 1 - 0 | DE51: R1, 1 - 0 | DG51: R1, 0.5 - 0.5 | DH51: R8, 1 - 0 | DJ51: R2, 0.5 - 0.5 | DK51: R1, 0 - 1 | DM51: R6, 0 - 1 | DO51: R6, 1 - 0 | DP51: R6, 0.5 - 0.5 | DQ51: R4, 0.5 - 0.5 | DS51: R4, 1 - 0 | DU51: R1, 1 - 0 | DV51: R2, 0 - 1 | DW51: R3, 0.5 - 0.5 | DX51: R4, 1 - 0
CW52: R1, 0.5 - 0.5 | CY52: R2, 0 - 1 | DB52: R1, 0.5 - 0.5 | DC52: R4, 1 - 0 | DD52: R1, 1 - 0 | DE52: R1, 0.5 - 0.5 | DF52: R1, 0 - 1 | DG52: R2, 0.5 - 0.5 | DI52: R3, 0 - 1 | DJ52: R1, 0.5 - 0.5 | DL52: R5, 0.5 - 0.5 | DM52: R6, 1 - 0 | DO52: R7, 0 - 1 | DR52: R4, 0.5 - 0.5 | DT52: R6, 0.5 - 0.5 | DU52: R4, 1 - 0 | DW52: R1, 0.5 - 0.5 | DX52: R1, 1 - 0 | DY52: R5, 1 - 0
CW53: R3, 1 - 0 | CX53: R5, 0.5 - 0.5 | CY53: R5, 0 - 1 | CZ53: R3, 0 - 1 | DC53: R1, 0.5 - 0.5 | DD53: R5, 0.5 - 0.5 | DF53: R3, 0 - 1 | DG53: R1, 0.5 - 0.5 | DH53: R1, 1 - 0 | DI53: R1, 1 - 0 | DJ53: R4, 0.5 - 0.5 | DK53: R6, 0.5 - 0.5 | DL53: R2, 0.5 - 0.5 | DN53: R2, 1 - 0 | DO53: R4, 0.5 - 0.5 | DR53: R4, 0 - 1 | DU53: R6, 1 - 0 | DV53: R1, 1 - 0 | DW53: R4, 0.5 - 0.5 | DX53: R2, 0.5 - 0.5 | DY53: R6, 0.5 - 0.5
CW54: R3, 0.5 - 0.5 | CX54: R2, 1 - 0 | CZ54: R3, 0 - 1 | DA54: R1, 0 - 1 | DB54: R1, 1 - 0 | DC54: R2, 1 - 0 | DD54: R1, 0 - 1 | DE54: R1, 1 - 0 | DF54: R1, 1 - 0 | DH54: R5, 1 - 0 | DI54: R7, 0.5 - 0.5 | DJ54: R2, 0 - 1 | DN54: R2, 0 - 1 | DP54: R6, 0.5 - 0.5 | DQ54: R1, 0.5 - 0.5 | DR54: R2, 0.5 - 0.5 | DS54: R4, 0 - 1 | DU54: R1, 1 - 0 | DV54: R4, 0.5 - 0.5
CW55: R3, 3 - 20 | CY55: R1, 0.5 - 0.5 | CZ55: R1, 0.5 - 0.5 | DA55: R1, 0 - 1 | DD55: R1, 1 - 0 | DE55: R1, 0.5 - 0.5 | DF55: R1, 1 - 0 | DH55: R3, 1 - 0 | DI55: R5, 1 - 0 | DK55: R5, 1 - 0 | DM55: R6, 1 - 0 | DN55: R6, 0.5 - 0.5 | DP55: R1, 1 - 0 | DR55: R2, 0.5 - 0.5 | DS55: R6, 0 - 1 | DT55: R3, 1 - 0 | DV55: R3, 1 - 0 | DW55: R4, 1 - 0 | DX55: R4, 0 - 1 | DY55: R1, 0 - 1
CW56: R1, 1 - 0 | CX56: R3, 1 - 0 | CY56: R3, 0 - 1 | CZ56: R1, 0.5 - 0.5 | DB56: R5, 0.5 - 0.5 | DE56: R3, 0.5 - 0.5 | DF56: R1, 1 - 0 | DG56: R1, 0.5 - 0.5 | DH56: R1, 1 - 0 | DI56: R1, 0 - 1 | DJ56: R1, 0.5 - 0.5 | DK56: R4, 0 - 1 | DN56: R1, 0 - 1 | DQ56: R6, 0 - 1 | DR56: R6, 1 - 0 | DS56: R1, 1 - 0 | DT56: R5, 0 - 1 | DU56: R4, 0.5 - 0.5 | DV56: R4, 0 - 1 | DW56: R1, 1 - 0 | DX56: R6, 5 - 18 | DY56: R2, 0.5 - 0.5
CZ57: R4, 1 - 0 | DA57: R3, 1 - 0 | DB57: R3, 0.5 - 0.5 | DC57: R1, 0.5 - 0.5 | DH57: R1, 1 - 0 | DK57: R2, 0.5 - 0.5 | DL57: R6, 0 - 1 | DM57: R5, 1 - 0 | DR57: R6, 0 - 1 | DS57: R4, 0 - 1 | DT57: R1, 1 - 0 | DV57: R1, 11 - 11 | DX57: R6, 0 - 1 | DY57: R4, 0 - 1
CW58: R5, 0.5 - 0.5 | CX58: R6, 1 - 0 | CY58: R4, 0.5 - 0.5 | CZ58: R2, 0.5 - 0.5 | DA58: R2, 0 - 1 | DB58: R1, 0.5 - 0.5 | DC58: R1, 0 - 1 | DD58: R6, 0 - 1 | DE58: R2, 1 - 0 | DG58: R3, 0 - 1 | DH58: R4, 0.5 - 0.5 | DL58: R1, 0 - 2 | DM58: R1, 0 - 1 | DO58: R3, 0 - 1 | DQ58: R1, 0 - 1 | DR58: R2, 1 - 0 | DU58: R7, 0 - 1 | DV58: R3, 0.5 - 0.5 | DX58: R2, 0 - 1
CW59: R1, 0 - 1 | CX59: R2, 0.5 - 0.5 | CY59: R2, 0.5 - 0.5 | CZ59: R1, 0.5 - 0.5 | DB59: R2, 0.5 - 0.5 | DC59: R5, 0.5 - 0.5 | DD59: R2, 18 - 4 | DE59: R1, 1 - 0 | DF59: R5, 1 - 0 | DG59: R4, 0.5 - 0.5 | DH59: R2, 0 - 1 | DI59: R1, 0 - 1 | DJ59: R3, 0 - 1 | DK59: R3, 0 - 1 | DN59: R4, 1 - 0 | DO59: R1, 0.5 - 0.5 | DP59: R1, 0.5 - 0.5 | DQ59: R3, 0 - 1 | DR59: R3, 1 - 0 | DS59: R2, 0 - 1 | DT59: R1, 0 - 1 | DU59: R1, 0.5 - 0.5 | DW59: R2, 1 - 0 | DX59: R6, 0.5 - 0.5 | DY59: R2, 0.5 - 0.5
CX60: R2, 0 - 1 | CZ60: R5, 0.5 - 0.5 | DA60: R1, 0 - 1 | DC60: R2, 0 - 1 | DD60: R1, 0.5 - 0.5 | DE60: R2, 0.5 - 0.5 | DF60: R2, 21 - 4 | DG60: R1, 0.5 - 0.5 | DI60: R4, 1 - 0 | DJ60: R1, 1 - 0 | DK60: R1, 1 - 0 | DL60: R2, 1 - 0 | DO60: R3, 0.5 - 0.5 | DP60: R3, 0.5 - 0.5 | DR60: R5, 0 - 1 | DS60: R1, 0.5 - 0.5 | DT60: R2, 1 - 0 | DV60: R2, 0.5 - 0.5 | DW60: R6, 0 - 1 | DY60: R2, 0.5 - 0.5
CW61: R1, 1 - 0 | CX61: R6, 1 - 0 | CY61: R1, 1 - 0 | CZ61: R5, 0.5 - 0.5 | DA61: R2, 0 - 1 | DC61: R4, 1 - 0 | DD61: R3, 0 - 1 | DF61: R3, 0 - 1 | DG61: R1, 1 - 0 | DH61: R4, 0.5 - 0.5 | DI61: R1, 1 - 0 | DJ61: R2, 0.5 - 0.5 | DL61: R3, 0 - 1 | DN61: R1, 1 - 0 | DP61: R3, 0 - 1 | DQ61: R1, 0.5 - 0.5 | DR61: R5, 0.5 - 0.5 | DS61: R2, 0 - 1 | DT61: R3, 0 - 1 | DU61: R8, 0 - 1 | DV61: R3, 0.5 - 0.5 | DW61: R1, 1 - 0 | DX61: R2, 0 - 1
CW62: R2, 1 - 0 | CX62: R1, 1 - 0 | CY62: R2, 0 - 1 | CZ62: R6, 0 - 1 | DA62: R1, 1 - 0 | DB62: R4, 0 - 1 | DC62: R2, 0.5 - 0.5 | DD62: R4, 0.5 - 0.5 | DE62: R1, 1 - 0 | DF62: R4, 1 - 0 | DH62: R3, 1 - 0 | DI62: R5, 0.5 - 0.5 | DJ62: R3, 0 - 1 | DK62: R3, 0 - 1 | DL62: R1, 0.5 - 0.5 | DM62: R3, 1 - 0 | DN62: R2, 0.5 - 0.5 | DO62: R1, 0.5 - 0.5 | DP62: R3, 1 - 0 | DQ62: R5, 0.5 - 0.5 | DS62: R4, 0.5 - 0.5 | DU62: R2, 0.5 - 0.5 | DV62: R2, 1 - 0 | DW62: R7, 0 - 1 | DX62: R1, 1 - 0 | DY62: R3, 0 - 1
CW63: R5, 0 - 1 | CX63: R1, 0.5 - 0.5 | CY63: R2, 0.5 - 0.5 | CZ63: R2, 1 - 0 | DA63: R5, 1 - 0 | DB63: R5, 0 - 1 | DE63: R4, 0.5 - 0.5 | DF63: R1, 0.5 - 0.5 | DH63: R1, 0.5 - 0.5 | DI63: R4, 0 - 1 | DJ63: R6, 0 - 1 | DK63: R1, 0 - 1 | DM63: R1, 0.5 - 0.5 | DN63: R3, 1 - 0 | DO63: R1, 1 - 1 | DR63: R2, 0 - 1 | DS63: R2, 0.5 - 0.5 | DU63: R2, 0 - 1 | DY63: R5, 1 - 0
CW64: R4, 0.5 - 0.5 | CY64: R7, 0 - 1 | DA64: R5, 0 - 1 | DB64: R1, 1 - 0 | DC64: R1, 1 - 0 | DD64: R5, 0 - 1 | DF64: R2, 1 - 0 | DG64: R4, 0 - 1 | DH64: R1, 0.5 - 0.5 | DI64: R4, 0 - 1 | DJ64: R1, 1 - 0 | DK64: R3, 1 - 0 | DL64: R3, 1 - 0 | DM64: R2, 0 - 1 | DN64: R1, 1 - 0 | DO64: R5, 0.5 - 0.5 | DQ64: R3, 0.5 - 0.5 | DS64: R3, 0.5 - 0.5 | DT64: R2, 0 - 1 | DV64: R5, 1 - 0 | DW64: R1, 0.5 - 0.5 | DX64: R2, 0 - 1 | DY64: R3, 0 - 1
CW65: R1, 0 - 1 | CX65: R2, 0 - 1 | CY65: R6, 1 - 0 | CZ65: R4, 0.5 - 0.5 | DC65: R4, 1 - 0 | DD65: R1, 1 - 0 | DE65: R5, 1 - 0 | DF65: R1, 0 - 1 | DG65: R2, 1 - 0 | DH65: R2, 4 - 21 | DI65: R4, 0.5 - 0.5 | DJ65: R2, 1 - 0 | DK65: R2, 0.5 - 0.5 | DL65: R1, 1 - 0 | DN65: R3, 0 - 1 | DO65: R8, 1 - 0 | DP65: R3, 0.5 - 0.5 | DS65: R2, 0 - 1 | DU65: R5, 0.5 - 0.5 | DV65: R5, 1 - 0 | DW65: R2, 1 - 0 | DX65: R4, 0.5 - 0.5 | DY65: R2, 0.5 - 0.5
CW66: R1, 0 - 1 | CX66: R1, 0 - 1 | CZ66: R3, 0.5 - 0.5 | DB66: R3, 0 - 1 | DC66: R1, 0.5 - 0.5 | DD66: R2, 0 - 1 | DE66: R3, 1 - 0 | DG66: R7, 1 - 0 | DH66: R5, 0.5 - 0.5 | DI66: R5, 1 - 0 | DJ66: R4, 0 - 1 | DK66: R1, 6 - 22 | DL66: R4, 0.5 - 0.5 | DM66: R1, 0 - 1 | DN66: R2, 0.5 - 0.5 | DO66: R5, 0.5 - 0.5 | DP66: R4, 0.5 - 0.5 | DQ66: R4, 0.5 - 0.5 | DR66: R1, 0 - 1 | DS66: R5, 0 - 1 | DT66: R3, 1 - 0 | DU66: R1, 1 - 0 | DV66: R6, 0 - 1 | DW66: R3, 0 - 1 | DX66: R3, 1 - 0 | DY66: R2, 1 - 0
CY67: R6, 0.5 - 0.5 | CZ67: R1, 1 - 0 | DA67: R2, 0 - 1 | DB67: R2, 1 - 0 | DC67: R2, 1 - 0 | DD67: R2, 0 - 1 | DE67: R2, 0 - 1 | DF67: R1, 0.5 - 0.5 | DI67: R4, 0 - 1 | DJ67: R7, 0 - 1 | DK67: R4, 0 - 1 | DL67: R2, 0.5 - 0.5 | DM67: R1, 1 - 0 | DN67: R5, 1 - 0 | DR67: R1, 0 - 1 | DV67: R3, 1 - 0 | DW67: R3, 0 - 1 | DX67: R1, 0.5 - 0.5 | DY67: R7, 0 - 1
CW68: R2, 0 - 1 | CZ68: R1, 1 - 0 | DA68: R1, 2 - 0 | DB68: R2, 0.5 - 0.5 | DC68: R2, 1 - 0 | DD68: R1, 1 - 0 | DE68: R2, 0 - 1 | DI68: R2, 0 - 1 | DJ68: R4, 1 - 0 | DK68: R4, 0.5 - 0.5 | DL68: R4, 0.5 - 0.5 | DN68: R5, 1 - 0 | DO68: R4, 0.5 - 0.5 | DP68: R4, 0.5 - 0.5 | DQ68: R5, 0.5 - 0.5 | DS68: R3, 1 - 0 | DU68: R2, 0.5 - 0.5 | DV68: R3, 1 - 0 | DW68: R6, 0.5 - 0.5 | DX68: R5, 0 - 1
CW69: R2, 1 - 0 | CX69: R1, 0.5 - 0.5 | DB69: R2, 0.5 - 0.5 | DC69: R5, 0.5 - 0.5 | DD69: R2, 4 - 21 | DE69: R2, 1 - 0 | DF69: R2, 1 - 0 | DH69: R1, 0.5 - 0.5 | DI69: R4, 1 - 0 | DJ69: R4, 0.5 - 0.5 | DK69: R5, 0 - 1 | DM69: R1, 9 - 10 | DN69: R5, 1 - 0 | DO69: R4, 0 - 1 | DP69: R3, 0.5 - 0.5 | DS69: R1, 0.5 - 0.5 | DT69: R1, 0.5 - 0.5 | DU69: R3, 1 - 0 | DV69: R3, 0 - 1 | DW69: R5, 1 - 0 | DX69: R7, 0.5 - 0.5
CX70: R3, 0 - 1 | CY70: R2, 0 - 1 | CZ70: R2, 1 - 0 | DA70: R1, 1 - 0 | DB70: R1, 0.5 - 0.5 | DD70: R2, 0 - 1 | DE70: R7, 0 - 1 | DF70: R2, 0.5 - 0.5 | DG70: R2, 0.5 - 0.5 | DH70: R2, 1 - 0 | DJ70: R4, 1 - 0 | DL70: R5, 0 - 1 | DN70: R5, 23 - 4 | DO70: R2, 0 - 1 | DP70: R4, 1 - 0 | DQ70: R4, 1 - 0 | DT70: R3, 0 - 1 | DU70: R3, 0.5 - 0.5 | DV70: R3, 0 - 1 | DW70: R2, 0 - 1 | DX70: R3, 1 - 0 | DY70: R1, 0 - 1
CW71: R1, 1 - 0 | CX71: R2, 0.5 - 0.5 | CY71: R2, 0.5 - 0.5 | DA71: R3, 0 - 1 | DC71: R2, 0 - 1 | DE71: R6, 0.5 - 0.5 | DF71: R2, 0.5 - 0.5 | DG71: R2, 0.5 - 0.5 | DH71: R7, 0 - 1 | DJ71: R8, 0 - 1 | DK71: R5, 0.5 - 0.5 | DL71: R5, 1 - 0 | DM71: R4, 1 - 0 | DN71: R3, 0 - 1 | DO71: R5, 0 - 1 | DP71: R4, 1 - 0 | DR71: R3, 1 - 0 | DS71: R3, 0 - 1 | DT71: R5, 1 - 0 | DU71: R2, 1 - 0 | DW71: R1, 0.5 - 0.5 | DY71: R3, 0.5 - 0.5
CY72: R2, 0 - 1 | CZ72: R2, 1 - 0 | DA72: R6, 0.5 - 0.5 | DC72: R5, 0 - 1 | DD72: R2, 1 - 0 | DE72: R5, 1 - 0 | DF72: R2, 1 - 0 | DG72: R1, 1 - 0 | DH72: R2, 1 - 0 | DJ72: R5, 0 - 1 | DK72: R4, 0.5 - 0.5 | DL72: R5, 0.5 - 0.5 | DM72: R5, 1 - 0 | DP72: R6, 1 - 0 | DQ72: R4, 1 - 0 | DR72: R5, 1 - 0 | DT72: R1, 1 - 0 | DU72: R7, 0.5 - 0.5 | DV72: R1, 0.5 - 0.5 | DX72: R5, 0 - 1 | DY72: R3, 1 - 0
CX73: R6, 0.5 - 0.5 | CY73: R3, 0 - 1 | CZ73: R1, 1 - 0 | DA73: R5, 1 - 0 | DB73: R2, 1 - 0 | DE73: R2, 0 - 1 | DF73: R4, 1 - 0 | DG73: R1, 0 - 2 | DI73: R4, 0 - 1 | DL73: R3, 0 - 1 | DM73: R5, 0 - 1 | DO73: R4, 0 - 1 | DP73: R5, 1 - 0 | DQ73: R1, 9 - 11 | DR73: R8, 0 - 1 | DS73: R3, 0 - 1 | DT73: R5, 1 - 0 | DV73: R1, 0.5 - 0.5 | DX73: R3, 0.5 - 0.5 | DY73: R3, 1 - 0
CW74: R4, 0.5 - 0.5 | CX74: R7, 1 - 0 | CY74: R1, 0 - 1 | CZ74: R6, 1 - 0 | DA74: R5, 0 - 1 | DB74: R1, 0.5 - 0.5 | DC74: R3, 1 - 0 | DE74: R1, 1 - 0 | DG74: R2, 1 - 0 | DH74: R4, 0.5 - 0.5 | DL74: R1, 0.5 - 0.5 | DM74: R6, 1 - 0 | DN74: R2, 0.5 - 0.5 | DO74: R6, 0.5 - 0.5 | DP74: R1, 0 - 1 | DS74: R5, 1 - 0 | DW74: R1, 1 - 0 | DX74: R1, 0.5 - 0.5 | DY74: R1, 20 - 5
CX75: R5, 0 - 1 | CY75: R3, 0 - 1 | DA75: R6, 0 - 1 | DB75: R5, 0 - 1 | DD75: R2, 0.5 - 0.5 | DG75: R1, 0.5 - 0.5 | DI75: R6, 1 - 0 | DJ75: R6, 0 - 1 | DK75: R6, 1 - 0 | DL75: R1, 0.5 - 0.5 | DM75: R1, 0 - 1 | DP75: R2, 0.5 - 0.5 | DQ75: R5, 1 - 0 | DT75: R5, 0.5 - 0.5 | DU75: R1, 0 - 2 | DV75: R1, 0.5 - 0.5 | DY75: R1, 1 - 0
CW76: R7, 1 - 0 | CX76: R3, 20 - 6 | CY76: R2, 0 - 1 | CZ76: R1, 0.5 - 0.5 | DA76: R3, 0 - 1 | DB76: R1, 0.5 - 0.5 | DC76: R5, 0.5 - 0.5 | DD76: R2, 0 - 1 | DF76: R1, 0 - 1 | DG76: R4, 0.5 - 0.5 | DH76: R2, 1 - 0 | DK76: R2, 1 - 0 | DN76: R6, 0 - 1 | DP76: R6, 0 - 1 | DU76: R1, 1 - 0 | DV76: R5, 1 - 0 | DW76: R4, 0 - 1 | DY76: R2, 0 - 1
CW77: R3, 1 - 0 | CX77: R1, 0 - 1 | CY77: R1, 0.5 - 0.5 | CZ77: R6, 1 - 0 | DB77: R4, 0 - 1 | DC77: R2, 1 - 0 | DD77: R1, 0.5 - 0.5 | DF77: R5, 1 - 0 | DH77: R1, 1 - 0 | DK77: R1, 1 - 0 | DM77: R2, 0 - 1 | DN77: R6, 0 - 1 | DO77: R6, 0.5 - 0.5 | DP77: R1, 1 - 0 | DQ77: R6, 0.5 - 0.5 | DR77: R1, 1 - 0 | DT77: R4, 1 - 0 | DU77: R5, 1 - 0 | DW77: R7, 1 - 0 | DX77: R5, 0 - 1
CW78: R2, 1 - 0 | CX78: R6, 1 - 0 | CY78: R3, 0.5 - 0.5 | CZ78: R5, 0.5 - 0.5 | DA78: R1, 0.5 - 0.5 | DB78: R5, 1 - 0 | DC78: R1, 2 - 0 | DE78: R5, 1 - 0 | DF78: R2, 1 - 0 | DG78: R4, 0 - 1 | DI78: R2, 0 - 1 | DJ78: R2, 1 - 0 | DL78: R6, 1 - 0 | DO78: R2, 0 - 1 | DQ78: R1, 0 - 1 | DR78: R4, 0.5 - 0.5 | DT78: R1, 1 - 0 | DW78: R1, 1 - 0 | DX78: R5, 0.5 - 0.5
CW79: R6, 1 - 0 | CZ79: R1, 1 - 0 | DC79: R4, 0 - 1 | DD79: R1, 0 - 1 | DE79: R2, 1 - 0 | DH79: R1, 1 - 0 | DI79: R3, 1 - 0 | DK79: R6, 0 - 1 | DL79: R2, 1 - 0 | DN79: R6, 1 - 0 | DQ79: R6, 1 - 0 | DR79: R3, 0 - 1 | DS79: R4, 0 - 1 | DU79: R1, 0.5 - 0.5 | DW79: R1, 20 - 4 | DX79: R1, 1 - 0 | DY79: R1, 1 - 0
CW80: R5, 0.5 - 0.5 | CX80: R1, 0.5 - 0.5 | CY80: R3, 1 - 0 | DA80: R3, 0 - 1 | DD80: R7, 1 - 0 | DE80: R2, 0 - 1 | DF80: R1, 0 - 1 | DI80: R1, 0 - 1 | DJ80: R2, 1 - 0 | DL80: R6, 0 - 1 | DM80: R6, 1 - 0 | DO80: R1, 0.5 - 0.5 | DQ80: R2, 1 - 0 | DR80: R1, 1 - 0 | DS80: R1, 1 - 0 | DT80: R1, 2 - 17 | DY80: R5, 0.5 - 0.5
CW81: R5, 1 - 0 | CY81: R4, 0.5 - 0.5 | CZ81: R2, 1 - 0 | DA81: R1, 1 - 0 | DB81: R2, 0.5 - 0.5 | DC81: R6, 1 - 0 | DE81: R1, 0.5 - 0.5 | DH81: R5, 0.5 - 0.5 | DI81: R1, 1 - 0 | DJ81: R1, 0.5 - 0.5 | DL81: R2, 6 - 19 | DP81: R6, 1 - 0 | DQ81: R2, 0 - 1 | DR81: R5, 0 - 1 | DS81: R1, 0.5 - 0.5 | DT81: R3, 0 - 1 | DU81: R6, 0 - 1 | DV81: R1, 1 - 0 | DW81: R5, 1 - 0
CW82: R2, 20 - 8 | CY82: R1, 1 - 0 | DA82: R1, 0.5 - 0.5 | DC82: R3, 0 - 1 | DD82: R4, 0 - 1 | DE82: R1, 0.5 - 0.5 | DH82: R1, 1 - 0 | DJ82: R1, 0 - 1 | DK82: R6, 0 - 1 | DL82: R2, 0 - 1 | DM82: R2, 0.5 - 0.5 | DN82: R3, 0.5 - 0.5 | DO82: R1, 1 - 0 | DP82: R4, 1 - 0 | DQ82: R7, 1 - 0 | DR82: R2, 0.5 - 0.5 | DS82: R3, 1 - 0 | DU82: R1, 0.5 - 0.5 | DV82: R2, 1 - 0 | DW82: R2, 0.5 - 0.5 | DX82: R6, 0 - 1
CW83: R6, 1 - 0 | CX83: R1, 1 - 0 | CZ83: R3, 1 - 0 | DB83: R3, 0 - 1 | DD83: R1, 1 - 0 | DE83: R4, 6 - 21 | DF83: R3, 1 - 0 | DI83: R3, 1 - 0 | DK83: R1, 0.5 - 0.5 | DL83: R6, 0 - 1 | DO83: R5, 0 - 1 | DP83: R1, 1 - 0 | DQ83: R1, 0.5 - 0.5 | DR83: R6, 0 - 1 | DS83: R2, 0.5 - 0.5 | DU83: R2, 1 - 0 | DV83: R2, 0.5 - 0.5 | DW83: R2, 0.5 - 0.5 | DY83: R6, 0.5 - 0.5
CW84: R5, 0.5 - 0.5 | CX84: R6, 1 - 0 | CY84: R1, 0.5 - 0.5 | DA84: R1, 0.5 - 0.5 | DC84: R1, 1 - 0 | DG84: R1, 0.5 - 0.5 | DH84: R3, 1 - 0 | DI84: R3, 0 - 1 | DL84: R1, 0.5 - 0.5 | DM84: R6, 0.5 - 0.5 | DN84: R3, 0 - 1 | DO84: R6, 0 - 1 | DP84: R6, 0.5 - 0.5 | DQ84: R1, 1 - 0 | DR84: R1, 0.5 - 0.5 | DS84: R6, 1 - 0 | DT84: R1, 1 - 0 | DU84: R2, 1 - 0 | DY84: R4, 0.5 - 0.5
CW85: R2, 0 - 1 | CX85: R5, 1 - 0 | CZ85: R1, 0 - 2 | DB85: R2, 0.5 - 0.5 | DC85: R3, 1 - 0 | DD85: R3, 0.5 - 0.5 | DF85: R6, 0 - 1 | DG85: R1, 0.5 - 0.5 | DH85: R1, 1 - 0 | DI85: R3, 0 - 1 | DJ85: R1, 1 - 0 | DM85: R4, 0.5 - 0.5 | DN85: R7, 0 - 1 | DO85: R2, 0.5 - 0.5 | DQ85: R1, 0 - 1 | DR85: R1, 0 - 1 | DT85: R6, 0 - 1 | DU85: R3, 0 - 1 | DW85: R3, 1 - 0 | DX85: R2, 0.5 - 0.5 | DY85: R1, 0 - 1
CW86: R1, 0 - 1 | CX86: R2, 9 - 8 | CY86: R1, 10 - 10 | DA86: R6, 1 - 0 | DB86: R3, 0.5 - 0.5 | DC86: R1, 0.5 - 0.5 | DE86: R1, 1 - 0 | DF86: R5, 0.5 - 0.5 | DG86: R6, 0.5 - 0.5 | DH86: R4, 1 - 0 | DJ86: R6, 0 - 1 | DK86: R1, 1 - 0 | DL86: R4, 0 - 1 | DM86: R2, 0 - 1 | DN86: R1, 1 - 0 | DO86: R6, 0 - 1 | DP86: R1, 0.5 - 0.5 | DQ86: R2, 0.5 - 0.5 | DR86: R2, 1 - 0 | DS86: R2, 1 - 0 | DT86: R4, 0.5 - 0.5 | DU86: R2, 1 - 0 | DV86: R5, 1 - 0 | DX86: R1, 0 - 1 | DY86: R6, 1 - 0
CW87: R1, 1 - 0 | CX87: R1, 0.5 - 0.5 | CY87: R5, 0.5 - 0.5 | CZ87: R2, 1 - 0 | DB87: R3, 0 - 1 | DC87: R4, 0 - 1 | DG87: R3, 1 - 0 | DH87: R3, 0 - 1 | DI87: R1, 0.5 - 0.5 | DJ87: R6, 0 - 1 | DK87: R2, 0 - 1 | DL87: R1, 0.5 - 0.5 | DM87: R1, 0 - 1 | DN87: R6, 0 - 1 | DO87: R1, 1 - 0 | DP87: R3, 1 - 0 | DR87: R1, 0 - 2 | DS87: R2, 1 - 0 | DT87: R3, 0.5 - 0.5 | DU87: R2, 0 - 1 | DV87: R3, 1 - 0 | DX87: R2, 0 - 1 | DY87: R2, 0.5 - 0.5
CX88: R1, 0 - 1 | CY88: R5, 0 - 1 | CZ88: R1, 0 - 1 | DA88: R1, 11 - 11 | DC88: R6, 0 - 1 | DD88: R3, 1 - 0 | DF88: R1, 0.5 - 0.5 | DG88: R5, 1 - 0 | DI88: R1, 0.5 - 0.5 | DJ88: R3, 1 - 0 | DK88: R1, 1 - 0 | DL88: R3, 0.5 - 0.5 | DN88: R1, 1 - 0 | DO88: R1, 0 - 1 | DQ88: R2, 0 - 1 | DR88: R2, 1 - 0 | DS88: R3, 0 - 1 | DT88: R2, 0 - 1 | DU88: R2, 0 - 1 | DV88: R2, 0.5 - 0.5 | DW88: R6, 0.5 - 0.5 | DX88: R2, 0.5 - 0.5 | DY88: R3, 0 - 1
CZ89: R1, 1 - 0 | DA89: R2, 0 - 1 | DB89: R7, 1 - 0 | DC89: R3, 0 - 1 | DD89: R1, 0 - 1 | DE89: R3, 0 - 1 | DG89: R3, 1 - 0 | DH89: R6, 1 - 0 | DJ89: R1, 1 - 0 | DL89: R6, 0.5 - 0.5 | DM89: R1, 0.5 - 0.5 | DO89: R3, 0.5 - 0.5 | DP89: R1, 1 - 0 | DQ89: R1, 0 - 2 | DS89: R4, 0.5 - 0.5 | DT89: R2, 1 - 0 | DV89: R7, 0 - 1 | DW89: R2, 0.5 - 0.5 | DX89: R3, 0.5 - 0.5 | DY89: R2, 0.5 - 0.5
CW90: R3, 0 - 1 | CX90: R3, 0 - 1 | CY90: R1, 0 - 1 | CZ90: R2, 0.5 - 0.5 | DA90: R3, 1 - 0 | DC90: R4, 0 - 1 | DF90: R5, 0.5 - 0.5 | DG90: R4, 0.5 - 0.5 | DK90: R6, 1 - 0 | DL90: R2, 0 - 1 | DM90: R1, 0.5 - 0.5 | DO90: R1, 0 - 1 | DP90: R4, 1 - 0 | DS90: R3, 12 - 15 | DT90: R7, 0 - 1 | DV90: R1, 0 - 1 | DW90: R1, 1 - 0 | DY90: R5, 0 - 1
CX91: R3, 1 - 0 | CY91: R2, 1 - 0 | CZ91: R1, 0.5 - 0.5 | DA91: R2, 1 - 0 | DC91: R4, 0 - 1 | DD91: R1, 1 - 0 | DI91: R1, 1 - 0 | DJ91: R2, 1 - 0 | DK91: R1, 0.5 - 0.5 | DL91: R4, 1 - 0 | DM91: R8, 0 - 1 | DQ91: R1, 0 - 1 | DR91: R1, 1 - 0 | DS91: R7, 0 - 1 | DV91: R2, 1 - 0 | DW91: R4, 0 - 1 | DY91: R3, 19 - 4
CX92: R2, 0 - 1 | CY92: R2, 1 - 0 | CZ92: R1, 0 - 1 | DB92: R7, 1 - 0 | DF92: R6, 0.5 - 0.5 | DG92: R6, 0 - 1 | DH92: R1, 0 - 1 | DJ92: R1, 0 - 1 | DK92: R4, 1 - 0 | DL92: R1, 0.5 - 0.5 | DQ92: R6, 0.5 - 0.5 | DR92: R6, 0 - 1 | DS92: R4, 0 - 1 | DT92: R1, 1 - 0 | DU92: R1, 0.5 - 0.5 | DV92: R3, 22 - 2 | DY92: R2, 0 - 1
CW93: R1, 0.5 - 0.5 | CX93: R2, 1 - 0 | CY93: R2, 1 - 0 | CZ93: R2, 0.5 - 0.5 | DE93: R5, 0.5 - 0.5 | DG93: R1, 0.5 - 0.5 | DI93: R6, 0.5 - 0.5 | DJ93: R6, 0.5 - 0.5 | DM93: R2, 0.5 - 0.5 | DN93: R2, 0.5 - 0.5 | DO93: R1, 0 - 1 | DQ93: R4, 1 - 0 | DR93: R1, 1 - 0 | DS93: R5, 0 - 1 | DT93: R4, 0.5 - 0.5 | DU93: R1, 1 - 0 | DV93: R4, 0 - 1 | DW93: R1, 1 - 0
CW94: R2, 0.5 - 0.5 | CX94: R1, 0.5 - 0.5 | CZ94: R3, 0 - 1 | DA94: R2, 0 - 1 | DC94: R6, 0.5 - 0.5 | DD94: R3, 0 - 1 | DF94: R1, 1 - 0 | DI94: R5, 0 - 1 | DK94: R1, 1 - 0 | DL94: R1, 1 - 0 | DM94: R4, 0.5 - 0.5 | DN94: R1, 0 - 1 | DP94: R3, 1 - 0 | DQ94: R2, 1 - 0 | DR94: R4, 0.5 - 0.5 | DS94: R1, 0 - 1 | DT94: R6, 0.5 - 0.5 | DV94: R1, 1 - 0 | DX94: R5, 0 - 1
CW95: R3, 1 - 0 | CX95: R1, 1 - 0 | CY95: R2, 0 - 1 | CZ95: R8, 0 - 1 | DA95: R3, 0.5 - 0.5 | DC95: R5, 1 - 0 | DI95: R1, 0.5 - 0.5 | DJ95: R1, 1 - 0 | DK95: R1, 0 - 1 | DN95: R4, 0 - 1 | DP95: R6, 1 - 0 | DT95: R1, 1 - 0 | DW95: R6, 1 - 0 | DX95: R1, 0.5 - 0.5 | DY95: R1, 0 - 1
CW96: R2, 0.5 - 0.5 | CY96: R3, 0.5 - 0.5 | CZ96: R3, 1 - 0 | DA96: R6, 1 - 0 | DB96: R5, 6 - 20 | DE96: R1, 0.5 - 0.5 | DF96: R8, 0 - 1 | DG96: R5, 0.5 - 0.5 | DJ96: R4, 1 - 0 | DM96: R5, 0 - 1 | DN96: R1, 1 - 1 | DO96: R2, 0 - 1 | DP96: R1, 0.5 - 0.5 | DQ96: R1, 0.5 - 0.5 | DS96: R1, 0 - 1 | DU96: R4, 1 - 0 | DW96: R3, 19 - 5 | DX96: R6, 0 - 1 | DY96: R1, 1 - 0
CW97: R3, 1 - 0 | CX97: R7, 1 - 0 | CY97: R6, 1 - 0 | DB97: R1, 1 - 0 | DD97: R3, 1 - 0 | DG97: R4, 0.5 - 0.5 | DH97: R5, 0 - 1 | DM97: R2, 0.5 - 0.5 | DN97: R1, 1 - 0 | DO97: R4, 0.5 - 0.5 | DP97: R2, 0 - 1 | DQ97: R1, 0 - 1 | DS97: R3, 11 - 12 | DT97: R1, 1 - 1 | DU97: R3, 0 - 1 | DV97: R6, 0 - 1 | DX97: R1, 0.5 - 0.5 | DY97: R1, 1 - 0
CW98: R2, 0.5 - 0.5 | DB98: R2, 0 - 1 | DD98: R3, 0.5 - 0.5 | DE98: R3, 0 - 1 | DF98: R5, 0 - 1 | DG98: R6, 0 - 1 | DI98: R4, 0.5 - 0.5 | DJ98: R1, 0.5 - 0.5 | DK98: R3, 0 - 1 | DL98: R1, 0.5 - 0.5 | DM98: R5, 0 - 1 | DN98: R1, 0.5 - 0.5 | DO98: R2, 0.5 - 0.5 | DP98: R3, 0 - 1 | DS98: R1, 0.5 - 0.5 | DV98: R1, 0 - 1 | DY98: R2, 0 - 1
DC99: R5, 1 - 0 | DD99: R3, 0.5 - 0.5 | DE99: R5, 0 - 1 | DF99: R3, 0.5 - 0.5 | DH99: R2, 1 - 0 | DI99: R6, 0.5 - 0.5 | DK99: R1, 0 - 1 | DM99: R3, 0 - 1 | DN99: R5, 0.5 - 0.5 | DO99: R3, 0.5 - 0.5 | DP99: R2, 1 - 0 | DV99: R6, 0 - 1 | DW99: R2, 0 - 1 | DX99: R2, 1 - 0 | DY99: R1, 1 - 0
DA100: R7, 0.5 - 0.5 | DB100: R8, 1 - 0 | DD100: R6, 0.5 - 0.5 | DE100: R6, 0.5 - 0.5 | DF100: R4, 1 - 0 | DG100: R2, 0 - 1 | DK100: R1, 0.5 - 0.5 | DL100: R5, 0 - 1 | DM100: R2, 0.5 - 0.5 | DO100: R1, 0.5 - 0.5 | DQ100: R3, 1 - 0 | DR100: R2, 0.5 - 0.5 | DU100: R4, 1 - 0 | DV100: R3, 1 - 0
CX101: R6, 1 - 0 | CY101: R2, 0 - 1 | CZ101: R7, 0.5 - 0.5 | DA101: R8, 0.5 - 0.5 | DB101: R5, 1 - 0 | DC101: R2, 1 - 0 | DE101: R5, 2 - 18 | DF101: R6, 1 - 0 | DG101: R5, 0 - 1 | DH101: R6, 0 - 1 | DK101: R2, 1 - 0 | DL101: R1, 0 - 1 | DM101: R3, 1 - 0 | DN101: R1, 0.5 - 0.5 | DQ101: R6, 1 - 0 | DR101: R6, 0.5 - 0.5 | DS101: R3, 1 - 0 | DV101: R1, 1 - 0 | DX101: R2, 1 - 0
CW102: R6, 0 - 1 | CZ102: R4, 1 - 0 | DA102: R4, 0.5 - 0.5 | DB102: R6, 0 - 1 | DC102: R6, 1 - 0 | DD102: R6, 1 - 0 | DE102: R2, 1 - 0 | DH102: R3, 0 - 1 | DI102: R5, 0.5 - 0.5 | DJ102: R1, 0 - 1 | DK102: R6, 20 - 3 | DN102: R2, 1 - 0 | DQ102: R5, 0 - 1 | DS102: R1, 1 - 0 | DT102: R5, 0.5 - 0.5 | DV102: R2, 1 - 0 | DW102: R1, 0 - 2
CW103: R2, 1 - 0 | DA103: R1, 0 - 1 | DB103: R3, 0.5 - 0.5 | DC103: R5, 0.5 - 0.5 | DD103: R2, 0.5 - 0.5 | DE103: R6, 0.5 - 0.5 | DF103: R1, 19 - 5 | DK103: R3, 0 - 1 | DM103: R1, 1 - 0 | DO103: R5, 0 - 1 | DQ103: R1, 0.5 - 0.5 | DR103: R1, 0 - 1 | DT103: R2, 0 - 1 | DY103: R1, 0 - 1
CW104: R7, 0.5 - 0.5 | CX104: R4, 0 - 1 | DB104: R6, 0 - 1 | DC104: R6, 1 - 0 | DD104: R5, 0.5 - 0.5 | DG104: R1, 11 - 12 | DI104: R1, 1 - 0 | DJ104: R3, 1 - 0 | DM104: R6, 1 - 0 | DN104: R2, 0.5 - 0.5 | DO104: R1, 0.5 - 0.5 | DP104: R1, 0 - 1 | DQ104: R1, 0.5 - 0.5 | DS104: R2, 1 - 0 | DT104: R1, 0 - 1 | DV104: R4, 0 - 1 | DX104: R1, 0.5 - 0.5
CW105: R8, 0.5 - 0.5 | CX105: R4, 0.5 - 0.5 | CY105: R1, 1 - 0 | DB105: R5, 0 - 1 | DE105: R2, 0 - 1 | DF105: R2, 1 - 0 | DG105: R6, 1 - 0 | DH105: R5, 1 - 0 | DI105: R2, 0 - 1 | DJ105: R5, 0.5 - 0.5 | DK105: R3, 10 - 10 | DL105: R6, 0.5 - 0.5 | DM105: R1, 0.5 - 0.5 | DP105: R1, 0.5 - 0.5 | DQ105: R2, 13 - 15 | DR105: R2, 0.5 - 0.5 | DT105: R1, 0.5 - 0.5 | DU105: R2, 1 - 0
CW106: R5, 0 - 1 | CX106: R6, 1 - 0 | CY106: R3, 0.5 - 0.5 | CZ106: R6, 1 - 0 | DA106: R5, 1 - 0 | DC106: R1, 1 - 0 | DH106: R2, 0.5 - 0.5 | DJ106: R4, 1 - 0 | DK106: R6, 0 - 1 | DL106: R5, 1 - 0 | DM106: R2, 1 - 0 | DN106: R6, 0 - 1 | DO106: R1, 0.5 - 0.5 | DP106: R1, 1 - 0 | DQ106: R2, 0 - 1 | DS106: R2, 1 - 0 | DT106: R6, 1 - 0 | DU106: R3, 1 - 0 | DV106: R2, 0.5 - 0.5 | DW106: R6, 0.5 - 0.5 | DX106: R6, 0.5 - 0.5 | DY106: R1, 0.5 - 0.5
CW107: R2, 0 - 1 | CX107: R6, 0 - 1 | CY107: R5, 0.5 - 0.5 | CZ107: R6, 0 - 1 | DB107: R1, 0 - 1 | DJ107: R3, 0 - 1 | DK107: R2, 0.5 - 0.5 | DL107: R1, 0.5 - 0.5 | DN107: R3, 0.5 - 0.5 | DO107: R5, 0.5 - 0.5 | DP107: R2, 0 - 1 | DR107: R3, 0.5 - 0.5 | DT107: R1, 1 - 0 | DU107: R6, 1 - 0 | DW107: R2, 0.5 - 0.5 | DX107: R6, 0.5 - 0.5 | DY107: R5, 1 - 0
CX108: R6, 0 - 1 | CY108: R2, 0.5 - 0.5 | CZ108: R5, 0.5 - 0.5 | DE108: R6, 10 - 11 | DG108: R5, 19 - 4 | DJ108: R2, 0.5 - 0.5 | DL108: R2, 0.5 - 0.5 | DM108: R4, 1 - 0 | DN108: R1, 0 - 1 | DO108: R1, 0 - 1 | DP108: R2, 1 - 0 | DQ108: R5, 0.5 - 0.5 | DS108: R1, 0 - 1 | DT108: R1, 1 - 0 | DU108: R6, 0.5 - 0.5 | DV108: R3, 0.5 - 0.5 | DW108: R6, 0 - 1 | DY108: R8, 1 - 0
CW109: R5, 18 - 2 | CX109: R2, 0 - 1 | CY109: R6, 0.5 - 0.5 | DA109: R2, 1 - 0 | DD109: R6, 11 - 10 | DF109: R2, 1 - 0 | DG109: R1, 0.5 - 0.5 | DK109: R2, 1 - 0 | DL109: R1, 0.5 - 0.5 | DM109: R1, 0 - 1 | DN109: R1, 0 - 1 | DO109: R2, 0 - 1 | DP109: R1, 2 - 0 | DQ109: R1, 1 - 0 | DR109: R4, 0 - 1 | DS109: R6, 1 - 0 | DT109: R6, 0.5 - 0.5 | DU109: R1, 1 - 0 | DV109: R1, 0 - 1 | DY109: R3, 0.5 - 0.5
CW110: R6, 0 - 1 | CY110: R1, 5 - 19 | DA110: R2, 0 - 1 | DE110: R2, 0 - 1 | DH110: R2, 0 - 1 | DI110: R6, 0 - 1 | DJ110: R5, 0 - 1 | DK110: R4, 0.5 - 0.5 | DL110: R7, 0 - 1 | DM110: R1, 1 - 0 | DN110: R1, 0 - 1 | DO110: R1, 0.5 - 0.5 | DP110: R5, 0 - 1 | DQ110: R1, 0.5 - 0.5 | DR110: R6, 1 - 0 | DS110: R6, 22 - 5 | DT110: R6, 1 - 0 | DV110: R1, 1 - 0 | DW110: R1, 1 - 0 | DX110: R5, 0.5 - 0.5 | DY110: R1, 2 - 0
CW111: R5, 1 - 0 | CZ111: R1, 12 - 11 | DA111: R6, 0 - 1 | DD111: R5, 4 - 19 | DE111: R1, 0.5 - 0.5 | DH111: R5, 1 - 0 | DJ111: R3, 0.5 - 0.5 | DK111: R1, 1 - 0 | DL111: R2, 0 - 1 | DM111: R2, 1 - 0 | DN111: R2, 1 - 0 | DO111: R1, 0.5 - 0.5 | DP111: R5, 0 - 1 | DR111: R6, 0.5 - 0.5 | DS111: R3, 0 - 1 | DT111: R4, 1 - 0 | DW111: R3, 0 - 1 | DX111: R2, 1 - 0 | DY111: R2, 0 - 1
CW112: R6, 1 - 0 | CX112: R3, 1 - 0 | DA112: R5, 0 - 1 | DB112: R2, 0.5 - 0.5 | DF112: R2, 1 - 0 | DG112: R5, 0 - 1 | DI112: R1, 0 - 2 | DJ112: R1, 0 - 1 | DK112: R1, 0 - 1 | DM112: R4, 1 - 0 | DN112: R5, 0.5 - 0.5 | DO112: R2, 1 - 0 | DP112: R5, 1 - 0 | DQ112: R2, 0.5 - 0.5 | DR112: R1, 1 - 0 | DS112: R6, 0.5 - 0.5 | DT112: R5, 1 - 0 | DU112: R4, 0.5 - 0.5 | DW112: R1, 1 - 0 | DX112: R3, 0 - 1 | DY112: R6, 0.5 - 0.5
CX113: R5, 0.5 - 0.5 | CZ113: R1, 0 - 1 | DA113: R2, 1 - 0 | DF113: R6, 1 - 0 | DH113: R1, 2 - 0 | DJ113: R1, 0.5 - 0.5 | DM113: R5, 0.5 - 0.5 | DN113: R2, 0.5 - 0.5 | DO113: R1, 0.5 - 0.5 | DP113: R6, 1 - 0 | DQ113: R7, 1 - 0 | DS113: R3, 0.5 - 0.5 | DU113: R5, 1 - 0 | DV113: R8, 0.5 - 0.5 | DW113: R4, 1 - 0 | DY113: R3, 0.5 - 0.5
CX114: R1, 1 - 0 | CZ114: R3, 0 - 1 | DA114: R5, 0.5 - 0.5 | DB114: R4, 0 - 1 | DC114: R3, 1 - 0 | DD114: R2, 0.5 - 0.5 | DF114: R5, 1 - 0 | DG114: R3, 0.5 - 0.5 | DH114: R1, 1 - 0 | DI114: R1, 0.5 - 0.5 | DL114: R3, 1 - 0 | DN114: R3, 20 - 3 | DU114: R2, 0.5 - 0.5 | DV114: R1, 0.5 - 0.5 | DW114: R2, 1 - 0 | DY114: R1, 0 - 1
CW115: R2, 0 - 1 | CX115: R6, 3 - 20 | CY115: R3, 1 - 0 | DA115: R3, 10 - 10 | DB115: R6, 1 - 0 | DC115: R2, 0.5 - 0.5 | DE115: R2, 0 - 1 | DF115: R4, 0.5 - 0.5 | DG115: R1, 0 - 1 | DH115: R1, 1 - 0 | DS115: R7, 0 - 1 | DT115: R1, 0.5 - 0.5 | DU115: R2, 1 - 0 | DV115: R6, 1 - 0 | DX115: R2, 0.5 - 0.5
CW116: R1, 1 - 0 | DA116: R6, 0.5 - 0.5 | DB116: R5, 0 - 1 | DC116: R1, 0.5 - 0.5 | DD116: R2, 0.5 - 0.5 | DE116: R1, 0.5 - 0.5 | DF116: R7, 1 - 0 | DG116: R2, 1 - 0 | DJ116: R3, 0 - 1 | DM116: R3, 0 - 1 | DQ116: R5, 0 - 1 | DR116: R2, 0.5 - 0.5 | DS116: R6, 0 - 1 | DV116: R2, 0 - 1 | DW116: R1, 1 - 0 | DY116: R4, 0 - 1
CW117: R3, 0 - 1 | CY117: R1, 0 - 1 | CZ117: R6, 0 - 1 | DA117: R1, 0.5 - 0.5 | DB117: R2, 0 - 1 | DD117: R4, 0 - 1 | DE117: R1, 1 - 0 | DF117: R1, 0 - 1 | DG117: R2, 0 - 1 | DH117: R4, 0 - 1 | DI117: R5, 0.5 - 0.5 | DL117: R3, 1 - 0 | DN117: R7, 0 - 1 | DP117: R2, 1 - 0 | DR117: R2, 1 - 0 | DS117: R2, 1 - 0 | DU117: R6, 0 - 1 | DV117: R5, 22 - 8 | DW117: R4, 0 - 1 | DY117: R1, 1 - 0
CW118: R1, 0.5 - 0.5 | CX118: R2, 0 - 1 | CZ118: R2, 0.5 - 0.5 | DB118: R6, 1 - 0 | DC118: R3, 0.5 - 0.5 | DD118: R1, 1 - 0 | DE118: R1, 1 - 0 | DF118: R1, 1 - 0 | DG118: R2, 0 - 1 | DH118: R5, 0.5 - 0.5 | DI118: R2, 0.5 - 0.5 | DJ118: R3, 3 - 20 | DM118: R7, 1 - 0 | DR118: R1, 0 - 1 | DS118: R3, 0 - 1 | DT118: R2, 1 - 0 | DV118: R4, 0.5 - 0.5 | DW118: R6, 0.5 - 0.5 | DX118: R2, 0.5 - 0.5 | DY118: R4, 1 - 0
CY119: R5, 1 - 0 | CZ119: R1, 0.5 - 0.5 | DB119: R1, 0.5 - 0.5 | DC119: R5, 0.5 - 0.5 | DD119: R1, 1 - 0 | DE119: R2, 1 - 0 | DF119: R1, 0.5 - 0.5 | DG119: R1, 0.5 - 0.5 | DH119: R2, 0 - 1 | DI119: R1, 0.5 - 0.5 | DQ119: R4, 19 - 2 | DR119: R2, 1 - 0 | DS119: R1, 0 - 1 | DT119: R2, 1 - 0 | DX119: R1, 1 - 0
CZ120: R1, 1 - 0 | DA120: R1, 0.5 - 0.5 | DB120: R1, 0 - 1 | DC120: R2, 1 - 0 | DD120: R2, 0 - 1 | DE120: R1, 0 - 2 | DF120: R5, 1 - 0 | DG120: R5, 1 - 0 | DH120: R5, 0 - 1 | DI120: R6, 0 - 1 | DM120: R2, 0 - 1 | DQ120: R8, 0.5 - 0.5 | DS120: R2, 0 - 1 | DU120: R4, 0 - 1 | DV120: R2, 0 - 1 | DW120: R2, 1 - 0 | DX120: R6, 0 - 1
CW121: R6, 0 - 1 | CX121: R5, 1 - 0 | CY121: R1, 0.5 - 0.5 | CZ121: R1, 0.5 - 0.5 | DA121: R2, 15 - 13 | DB121: R2, 1 - 0 | DD121: R5, 0.5 - 0.5 | DE121: R1, 0 - 1 | DF121: R1, 0.5 - 0.5 | DH121: R2, 0.5 - 0.5 | DI121: R7, 0 - 1 | DL121: R5, 1 - 0 | DO121: R4, 2 - 19 | DP121: R8, 0.5 - 0.5 | DR121: R6, 0 - 1 | DS121: R6, 1 - 0 | DT121: R4, 0 - 1 | DU121: R1, 0.5 - 0.5 | DV121: R3, 0 - 1 | DY121: R2, 0 - 1
CW122: R6, 0.5 - 0.5 | CY122: R1, 1 - 0 | DA122: R2, 0.5 - 0.5 | DC122: R3, 0.5 - 0.5 | DE122: R4, 1 - 0 | DF122: R6, 0 - 1 | DG122: R6, 0.5 - 0.5 | DH122: R1, 0 - 1 | DL122: R2, 0.5 - 0.5 | DM122: R2, 0 - 1 | DN122: R1, 1 - 0 | DO122: R2, 0 - 1 | DQ122: R6, 1 - 0 | DT122: R6, 10 - 10
CW123: R3, 0 - 1 | CX123: R1, 0 - 1 | CZ123: R2, 0 - 1 | DB123: R2, 0 - 1 | DD123: R1, 1 - 0 | DE123: R6, 0 - 1 | DF123: R6, 5 - 22 | DG123: R3, 1 - 0 | DH123: R6, 0.5 - 0.5 | DI123: R3, 0.5 - 0.5 | DK123: R7, 1 - 0 | DL123: R6, 1 - 0 | DM123: R2, 0 - 1 | DN123: R3, 1 - 0 | DO123: R1, 1 - 0 | DP123: R2, 1 - 0 | DQ123: R6, 0 - 1 | DT123: R5, 0 - 1 | DY123: R6, 0.5 - 0.5
CX124: R5, 0.5 - 0.5 | CY124: R2, 1 - 0 | CZ124: R1, 1 - 0 | DA124: R1, 0.5 - 0.5 | DB124: R6, 0 - 1 | DC124: R1, 0 - 1 | DD124: R1, 0 - 1 | DE124: R6, 0.5 - 0.5 | DF124: R6, 0 - 1 | DG124: R4, 0 - 1 | DH124: R5, 0 - 1 | DK124: R1, 0.5 - 0.5 | DN124: R2, 0 - 1 | DO124: R2, 0 - 1 | DQ124: R4, 1 - 0 | DR124: R6, 10 - 10 | DS124: R5, 1 - 0
DA125: R2, 0 - 1 | DB125: R3, 0 - 1 | DC125: R6, 0 - 1 | DD125: R6, 0.5 - 0.5 | DE125: R1, 0 - 1 | DH125: R4, 0.5 - 0.5 | DI125: R5, 0 - 1 | DJ125: R2, 0.5 - 0.5 | DK125: R2, 0 - 1 | DM125: R6, 1 - 0 | DP125: R4, 1 - 0 | DQ125: R1, 0.5 - 0.5
CW126: R1, 0 - 1 | CX126: R2, 0 - 1 | CZ126: R4, 1 - 0 | DB126: R2, 0.5 - 0.5 | DD126: R3, 0.5 - 0.5 | DE126: R1, 1 - 0 | DF126: R1, 0 - 1 | DI126: R8, 0.5 - 0.5 | DJ126: R1, 0.5 - 0.5 | DK126: R6, 0 - 1 | DL126: R2, 1 - 0 | DM126: R5, 8 - 22 | DN126: R4, 0.5 - 0.5 | DP126: R2, 1 - 0 | DQ126: R3, 1 - 0 | DW126: R6, 0.5 - 0.5
CX127: R1, 2 - 0 | DB127: R6, 0.5 - 0.5 | DC127: R2, 0.5 - 0.5 | DD127: R6, 1 - 0 | DF127: R1, 0 - 1 | DG127: R3, 1 - 0 | DH127: R1, 0 - 1 | DI127: R4, 0 - 1 | DJ127: R2, 0 - 1 | DL127: R1, 0 - 1 | DM127: R4, 1 - 0 | DN127: R6, 0.5 - 0.5 | DP127: R2, 0 - 1 | DV127: R6, 0.5 - 0.5 | DX127: R3, 1 - 0
CW128: R2, 0 - 1 | CZ128: R1, 0.5 - 0.5 | DB128: R6, 0.5 - 0.5 | DC128: R6, 0.5 - 0.5 | DF128: R5, 0.5 - 0.5 | DG128: R2, 0 - 1 | DH128: R3, 1 - 0 | DK128: R2, 0.5 - 0.5 | DN128: R2, 0.5 - 0.5 | DO128: R1, 0 - 1 | DP128: R6, 1 - 0 | DW128: R3, 0 - 1
CY129: R1, 1 - 0 | DB129: R1, 0.5 - 0.5 | DC129: R5, 0 - 1 | DD129: R8, 0 - 1 | DE129: R3, 0.5 - 0.5 | DF129: R1, 0 - 2 | DG129: R2, 1 - 0 | DH129: R6, 0.5 - 0.5 | DI129: R3, 0.5 - 0.5 | DJ129: R1, 1 - 0 | DL129: R4, 1 - 0 | DM129: R1, 0 - 1 | DN129: R4, 0 - 1 | DQ129: R2, 1 - 0 | DS129: R6, 0.5 - 0.5

Sheet Round1
A1: Swaps: 0 | B1: Home Player | C1: Away Player | D1: Home Points | E1: Away Points | F1: Home TD | G1: Away TD | H1: Home Cas | I1: Away Cas | J1: Home Bonus1 | K1: Away Bonus1 | L1: Home Bonus2 | M1: Away Bonus2 | N1: Home Group | O1: Away Group | S1: Points Before Games | V1: Points After Games
B2: d | C2: b | D2: =fctScore(F2,G2,H2,J2,L2) -> 1 | E2: =fctScore(G2,F2,I2,K2,M2) -> 1 | F2: 2 | G2: 2 | H2: 2 | I2: 1 | J2: 1 | K2: 2 | L2: 0 | M2: 2 | S2: d | T2: 0 | V2: d | W2: 2
B3: a | C3: c | D3: =fctScore(F3,G3,H3,J3,L3) -> 1 | E3: =fctScore(G3,F3,I3,K3,M3) -> 1 | F3: 2 | G3: 2 | H3: 0 | I3: 1 | J3: 3 | K3: 2 | L3: 1 | M3: 3 | S3: b | T3: 0 | V3: c | W3: 2
B4: n | C4: m | D4: 2 | E4: 0 | F4: 3 | G4: 0 | H4: 3 | I4: 1 | J4: 2 | K4: 2 | L4: 0 | M4: 2 | S4: a | T4: 0 | V4: b | W4: 2
B5: i | C5: e | D5: 1 | E5: 1 | F5: 1 | G5: 1 | H5: 2 | I5: 2 | J5: 1 | K5: 1 | L5: 2 | M5: 2 | S5: c | T5: 0 | V5: a | W5: 2
B6: l | C6: k | D6: 0 | E6: 2 | F6: 2 | G6: 3 | H6: 3 | I6: 1 | J6: 2 | K6: 3 | L6: 1 | M6: 2 | S6: n | T6: 0 | V6: n | W6: 2
B7: f | C7: h | D7: 0 | E7: 2 | F7: 0 | G7: 3 | H7: 2 | I7: 0 | J7: 2 | K7: 0 | L7: 0 | M7: 2 | S7: m | T7: 0 | V7: h | W7: 2
B8: j | C8: g | D8: 2 | E8: 0 | F8: 1 | G8: 0 | H8: 1 | I8: 1 | J8: 1 | K8: 3 | L8: 3 | M8: 1 | S8: i | T8: 0 | V8: k | W8: 2
S9: e | T9: 0 | V9: e | W9: 1
S10: l | T10: 0 | V10: i | W10: 1
S11: k | T11: 0 | V11: l | W11: 0
S12: f | T12: 0 | V12: f | W12: 0
S13: h | T13: 0 | V13: m | W13: 0
S14: j | T14: 0 | V14: j | W14: -98
S15: g | T15: 0 | V15: g | W15: -100

Sheet Round2

Sheet Round3

Sheet Round4

Sheet Round5

Sheet Round6

Sheet Round7

Sheet Round8

Sheet Round9

Sheet NAF
A1: <?xml version="1.0" encoding="UTF-8"?>
A2: <nafReport xmlns:blo="http://www.bloodbowl.net">
A3: <organiser>Mike</organiser>
A4: <coaches>
A5: <coach>
A6: <name>Alex</name>
A7: <number>16761</number>
A8: <team>Skaven</team>
A9: </coach>
A10: <coach>
A11: <name>Mike</name>
A12: <number>10468</number>
A13: <team>Elves</team>
A14: </coach>
A15: <coach>
A16: <name>Linus</name>
A17: <number>15676</number>
A18: <team>Dwarves</team>
A19: </coach>
A20: <coach>
A21: <name>Player4</name>
A22: <number>9106</number>
A23: <team>Wood Elves</team>
A24: </coach>
A25: <coach>
A26: <name>Player5</name>
A27: <number>12789</number>
A28: <team>Dark Elves</team>
A29: </coach>
A30: <coach>
A31: <name>Player6</name>
A32: <number>18136</number>
A33: <team>Wood Elves</team>
A34: </coach>
A35: <coach>
A36: <name>Player7</name>
A37: <number>9672</number>
A38: <team>Wood Elves</team>
A39: </coach>
A40: <coach>
A41: <name>Player8</name>
A42: <number>4118</number>
A43: <team>Chaos Dwarves</team>
A44: </coach>
A45: <coach>
A46: <name>Player9</name>
A47: <number>14129</number>
A48: <team>Nurgle's Rotters</team>
A49: </coach>
A50: <coach>
A51: <name>Player10</name>
A52: <number>1739</number>
A53: <team>Lizardmen</team>
A54: </coach>
A55: <coach>
A56: <name>Player11</name>
A57: <number>19602</number>
A58: <team>Slann</team>
A59: </coach>
A60: <coach>
A61: <name>Player12</name>
A62: <number>15064</number>
A63: <team>Wood Elves</team>
A64: </coach>
A65: <coach>
A66: <name>Player13</name>
A67: <number>6092</number>
A68: <team>Amazons</team>
A69: </coach>
A70: <coach>
A71: <name>Player14</name>
A72: <number>9080</number>
A73: <team>Dwarves</team>
A74: </coach>
A75: <coach>
A76: <name>Player15</name>
A77: <number>7960</number>
A78: <team>Undead</team>
A79: </coach>
A80: <coach>
A81: <name>Player16</name>
A82: <number>15062</number>
A83: <team>Goblins</team>
A84: </coach>
A85: <coach>
A86: <name>Player17</name>
A87: <number>7106</number>
A88: <team>Wood Elves</team>
A89: </coach>
A90: <coach>
A91: <name>Player18</name>
A92: <number>7371</number>
A93: <team>Khemri</team>
A94: </coach>
A95: </coaches>
A96: <game>
A97: <timestamp>2016-09-18 01:00</timestamp>
A98: <playerRecord>
A99: <name>Player7</name>
A100: <number>9672</number>
A101: <teamRating>100</teamRating>
A102: <touchDowns>12</touchDowns>
A103: <badlyHurt>2</badlyHurt>
A104: </playerRecord>
A105: <playerRecord>
A106: <name>Player9</name>
A107: <number>14129</number>
A108: <teamRating>100</teamRating>
A109: <touchDowns>7</touchDowns>
A110: <badlyHurt>1</badlyHurt>
A111: </playerRecord>
A112: </game>
A113: <game>
A114: <timestamp>2016-09-18 01:00</timestamp>
A115: <playerRecord>
A116: <name>Player6</name>
A117: <number>18136</number>
A118: <teamRating>100</teamRating>
A119: <touchDowns>12</touchDowns>
A120: <badlyHurt>2</badlyHurt>
A121: </playerRecord>
A122: <playerRecord>
A123: <name>Player11</name>
A124: <number>19602</number>
A125: <teamRating>100</teamRating>
A126: <touchDowns>12</touchDowns>
A127: <badlyHurt>2</badlyHurt>
A128: </playerRecord>
A129: </game>
A130: <game>
A131: <timestamp>2016-09-18 01:00</timestamp>
A132: <playerRecord>
A133: <name>Player17</name>
A134: <number>7106</number>
A135: <teamRating>100</teamRating>
A136: <touchDowns>10</touchDowns>
A137: <badlyHurt>2</badlyHurt>
A138: </playerRecord>
A139: <playerRecord>
A140: <name>Player13</name>
A141: <number>6092</number>
A142: <teamRating>100</teamRating>
A143: <touchDowns>8</touchDowns>
A144: <badlyHurt>2</badlyHurt>
A145: </playerRecord>
A146: </game>
A147: <game>
A148: <timestamp>2016-09-18 01:00</timestamp>
A149: <playerRecord>
A150: <name>Player8</name>
A151: <number>4118</number>
A152: <teamRating>100</teamRating>
A153: <touchDowns>3</touchDowns>
A154: <badlyHurt>1</badlyHurt>
A155: </playerRecord>
A156: <playerRecord>
A157: <name>Linus</name>
A158: <number>15676</number>
A159: <teamRating>100</teamRating>
A160: <touchDowns>16</touchDowns>
A161: <badlyHurt>3</badlyHurt>
A162: </playerRecord>
A163: </game>
A164: <game>
A165: <timestamp>2016-09-18 01:00</timestamp>
A166: <playerRecord>
A167: <name>Player14</name>
A168: <number>9080</number>
A169: <teamRating>100</teamRating>
A170: <touchDowns>9</touchDowns>
A171: <badlyHurt>1</badlyHurt>
A172: </playerRecord>
A173: <playerRecord>
A174: <name>Player10</name>
A175: <number>1739</number>
A176: <teamRating>100</teamRating>
A177: <touchDowns>11</touchDowns>
A178: <badlyHurt>2</badlyHurt>
A179: </playerRecord>
A180: </game>
A181: <game>
A182: <timestamp>2016-09-18 01:00</timestamp>
A183: <playerRecord>
A184: <name>Mike</name>
A185: <number>10468</number>
A186: <teamRating>100</teamRating>
A187: <touchDowns>4</touchDowns>
A188: <badlyHurt>0</badlyHurt>
A189: </playerRecord>
A190: <playerRecord>
A191: <name>Player5</name>
A192: <number>12789</number>
A193: <teamRating>100</teamRating>
A194: <touchDowns>17</touchDowns>
A195: <badlyHurt>2</badlyHurt>
A196: </playerRecord>
A197: </game>
A198: <game>
A199: <timestamp>2016-09-18 01:00</timestamp>
A200: <playerRecord>
... 661 more rows

Sheet Working
Z1: Latest Rd: | AA1: 1
Z2: Players: | AA2: =COUNTA(Players!B:B)-1 -> 14 | AE2: Max Score | AF2: =Setup!B19*TeamSize*Setup!B19+Setup!B19 -> 18
Z3: Display | AA3: 14 | AB3: Columns
Z4: Enter | AA4: 7 | AB4: Columns
Z5: Max random | AA5: 3
Z6: Number of Groups | AA6: =COUNTA(Players!M:M)-1 -> 8 | AE6: Group
AE7: Individual
Z8: Group display | AA8: 18 | AB8: columns
AC10: Cumulative
AA11: Amazons | AG11: Entry Data
AA12: Bretonnian | AE12: Initial Display Columns | AG12: Player
AA13: Chaos | AE13: Player | AG13: Points
AA14: Chaos Dwarves | AE14: Points | AG14: TD
AA15: Chaos Pact | AE15: TD For | AG15: Cas
AA16: Dark Elves | AE16: Cas For | AG16: =Setup!E3 -> Bonus1 | AH16: Bonus1 Name
AA17: Dwarves | AE17: =Working!AG16 -> Bonus1 | AG17: =Setup!E4 -> Bonus2 | AH17: Bonus2 Name
AA18: Elves | AE18: =Working!AG17 -> Bonus2 | AG18: Group
AA19: Goblins | AE19: TD Against
AA20: Halflings | AE20: Cas Against
AA21: High Elves | AE21: TD Net
AA22: Humans | AE22: Cas Net
AA23: Khemri | AE23: Wins
AA24: Khorne | AE24: Draws
AA25: Lizardmen | AE25: Losses
AA26: Necromantic | AE26: Opp Score
AA27: Norse | AE27: Group
AA28: Nurgle's Rotters | AE28: Accelerated
AA29: Ogres
AA30: Orc
AA31: Skaven
AA32: Slann
AA33: Undead
AA34: Underworld
AA35: Vampires
AA36: Wood Elves

Sheet ChangeLog
B1: This spreadsheet is based on one by Kaper on an Excel forum: http://www.excelforum.com/excel-programming-vba-macros/1105569-swiss-pairing-algorithm-in-excel-to-organize-a-chess-tournament.html
B2: Massive thanks due to him!
B3: The original was used for Chess, and it has been adapted to work for Blood Bowl by sann0638 (Mike Davies)
A5: Version | B5: Summary | C5: Date | D5: Notes
A6: 1.0 | B6: Multi-sheet version of the chess | C6: 2016-06-19
A7: 1.1 | B7: Remove Black and White stuff | C7: 2016-06-19
A8: 1.2 | B8: Change to TDs to generate points | C8: 2016-06-19
B9: Got the Swiss working properly | C9: 2016-06-19 | D9: Published.
A10: 1.3 | B10: More help information. | C10: 2016-06-20
B11: Added Table | C11: 2016-06-20
B12: Added Opponent Score | C12: 2016-06-20
A13: 2.1 | B13: Big overhaul to where info stored | C13: 2016-06-21
A14: 2.2 | B14: Putting in the Score formula | C14: 2016-06-21 | D14: Published.
A15: 3.1 | B15: Added all tiebreaker columns | C15: 2016-06-22
B16: Realised opponent score was wrong, fixed it. | C16: 2016-06-22
A17: 3.2 | B17: Fixed problem with sorting the table. | C17: 2016-06-23 | D17: Published.
A18: 3.3 | B18: Tiebreakers implemented | C18: 2016-06-24
B19: NAF Upload file | C19: 2016-06-24 | D19: Published.
A20: 4.1 | B20: Group results and matrix added | C20: 2016-06-25
B21: Group results fully implemented | C21: 2016-06-26
A22: 4.2 | B22: Fixed net casualties | C22: 2016-06-28
A23: 4.3 | B23: Tiebreakers corrected, yet again! | C23: 2016-09-17 | D23: Published.
A24: 4.4 | B24: Group results corrected, groups added to table | C24: 2016-09-17
B25: Removed need for Groups to be in there, corrected number of players. | C25: 2016-09-18 | D25: Published.
A26: 5.0 | B26: Mostly working Group Swiss | C26: 2016-09-21
A27: 5.1 | B27: Working Group Swiss. | C27: 2016-09-21 | D27: Published.
A28: 5.2 | B28: Fixed problem with more than 100 coaches. | C28: 2016-09-25
B29: Tidied up tabs. | C29: 2016-09-25 | D29: Published.
A30: 7.1 | B30: Back to playing – added in a tab to show the Stunty Cup. Spent some time trying to add in extra Bonuses, but there were too many knock-on effects, so parked that one. 2 should be enough for people!
A31: 8 | B31: Getting sorted for Eurobowl 2018. Added a Presentation tab for putting on websites and the like and also for printing to enter results, plus some colour coding.
A32: 9.1 | B32: Post Eurobowl 2018. A variable was needed to be restated to allow pauses between running the various macros.
A33: 9.2 | B33: Cleaned up the variables a bit. Getting ready for Eurobowl/Europen 2020 in Poland! | C33: 2020-03-01 | D33: Published.
A34: 9.3 | B34: Various tweaks following Bob feedback | C34: 2020-03-12
B35: Accelerated Swiss implemented, though currently it takes the point away after 2 rounds
B36: Presentation made variable size for team size
